Workbook

Sheet 01-2017
A1: Stavy jídel za období 1.1.2017 - 31.1.2017
A2: Datum | B2: Zaměstnanci FN | C2: Studenti | D2: Stážisté | E2: Důchodci | F2: Exbio | G2: Cizí | H2: Tablet | I2: Jesle | J2: Školka | K2: Jídelna celkem | L2: Celkový počet obědů (bez školka a jesle)
A3: 01.01. neděle | B3: 60 | G3: 4 | H3: 157 | K3: =SUM(Tabulka_ExterníData_15[[#This Row],[Zaměstnanci FN]:[Cizí]]) -> 64 | L3: =SUM(H3,K3) -> 221
A4: 02.01. pondělí | B4: 952 | C4: 76 | D4: 5 | E4: 83 | F4: 9 | G4: 71 | H4: 461 | I4: 10 | J4: 44 | K4: =SUM(Tabulka_ExterníData_15[[#This Row],[Zaměstnanci FN]:[Cizí]]) -> 1196 | L4: 1657
A5: 03.01. úterý | B5: 1128 | C5: 205 | D5: 9 | E5: 96 | F5: 12 | G5: 132 | H5: 533 | I5: 10 | J5: 38 | K5: =SUM(Tabulka_ExterníData_15[[#This Row],[Zaměstnanci FN]:[Cizí]]) -> 1582 | L5: 2115
A6: 04.01. středa | B6: 1192 | C6: 215 | D6: 11 | E6: 111 | F6: 13 | G6: 148 | H6: 566 | I6: 10 | J6: 38 | K6: =SUM(Tabulka_ExterníData_15[[#This Row],[Zaměstnanci FN]:[Cizí]]) -> 1690 | L6: 2256
A7: 05.01. čtvrtek | B7: 1177 | C7: 223 | D7: 11 | E7: 109 | F7: 13 | G7: 147 | H7: 564 | I7: 10 | J7: 38 | K7: =SUM(Tabulka_ExterníData_15[[#This Row],[Zaměstnanci FN]:[Cizí]]) -> 1680 | L7: 2244
A8: 06.01. pátek | B8: 1124 | C8: 183 | D8: 9 | E8: 111 | F8: 10 | G8: 127 | H8: 530 | I8: 10 | J8: 38 | K8: =SUM(Tabulka_ExterníData_15[[#This Row],[Zaměstnanci FN]:[Cizí]]) -> 1564 | L8: 2094
A9: 07.01. sobota | B9: 72 | G9: 4 | H9: 224 | K9: =SUM(Tabulka_ExterníData_15[[#This Row],[Zaměstnanci FN]:[Cizí]]) -> 76 | L9: 300
A10: 08.01. neděle | B10: 48 | G10: 4 | H10: 225 | K10: =SUM(Tabulka_ExterníData_15[[#This Row],[Zaměstnanci FN]:[Cizí]]) -> 52 | L10: 277
A11: 09.01. pondělí | B11: 1120 | C11: 179 | D11: 10 | E11: 104 | F11: 14 | G11: 149 | H11: 542 | I11: 10 | J11: 40 | K11: =SUM(Tabulka_ExterníData_15[[#This Row],[Zaměstnanci FN]:[Cizí]]) -> 1576 | L11: 2118
A12: 10.01. úterý | B12: 1158 | C12: 205 | D12: 12 | E12: 101 | F12: 11 | G12: 153 | H12: 561 | I12: 10 | J12: 38 | K12: =SUM(Tabulka_ExterníData_15[[#This Row],[Zaměstnanci FN]:[Cizí]]) -> 1640 | L12: 2201
A13: 11.01. středa | B13: 1208 | C13: 212 | D13: 11 | E13: 114 | F13: 14 | G13: 160 | H13: 593 | I13: 10 | J13: 38 | K13: =SUM(Tabulka_ExterníData_15[[#This Row],[Zaměstnanci FN]:[Cizí]]) -> 1719 | L13: 2312
A14: 12.01. čtvrtek | B14: 1220 | C14: 197 | D14: 11 | E14: 118 | F14: 11 | G14: 157 | H14: 551 | I14: 10 | J14: 35 | K14: =SUM(Tabulka_ExterníData_15[[#This Row],[Zaměstnanci FN]:[Cizí]]) -> 1714 | L14: 2265
A15: 13.01. pátek | B15: 1152 | C15: 148 | D15: 9 | E15: 104 | F15: 11 | G15: 128 | H15: 556 | I15: 10 | J15: 38 | K15: =SUM(Tabulka_ExterníData_15[[#This Row],[Zaměstnanci FN]:[Cizí]]) -> 1552 | L15: 2108
A16: 14.01. sobota | B16: 64 | G16: 6 | H16: 222 | K16: =SUM(Tabulka_ExterníData_15[[#This Row],[Zaměstnanci FN]:[Cizí]]) -> 70 | L16: 292
A17: 15.01. neděle | B17: 64 | G17: 4 | H17: 217 | K17: =SUM(Tabulka_ExterníData_15[[#This Row],[Zaměstnanci FN]:[Cizí]]) -> 68 | L17: 285
A18: 16.01. pondělí | B18: 1105 | C18: 149 | D18: 10 | E18: 107 | F18: 13 | G18: 149 | H18: 542 | I18: 10 | J18: 40 | K18: =SUM(Tabulka_ExterníData_15[[#This Row],[Zaměstnanci FN]:[Cizí]]) -> 1533 | L18: 2075
A19: 17.01. úterý | B19: 1177 | C19: 183 | D19: 10 | E19: 111 | F19: 13 | G19: 153 | H19: 576 | I19: 10 | J19: 40 | K19: =SUM(Tabulka_ExterníData_15[[#This Row],[Zaměstnanci FN]:[Cizí]]) -> 1647 | L19: 2223
A20: 18.01. středa | B20: 1147 | C20: 170 | D20: 8 | E20: 114 | F20: 12 | G20: 152 | H20: 606 | I20: 10 | J20: 43 | K20: =SUM(Tabulka_ExterníData_15[[#This Row],[Zaměstnanci FN]:[Cizí]]) -> 1603 | L20: 2209
A21: 19.01. čtvrtek | B21: 1203 | C21: 170 | D21: 11 | E21: 111 | F21: 13 | G21: 165 | H21: 583 | I21: 10 | J21: 40 | K21: =SUM(Tabulka_ExterníData_15[[#This Row],[Zaměstnanci FN]:[Cizí]]) -> 1673 | L21: 2256
A22: 20.01. pátek | B22: 1094 | C22: 111 | D22: 4 | E22: 113 | F22: 13 | G22: 136 | H22: 532 | I22: 10 | J22: 40 | K22: =SUM(Tabulka_ExterníData_15[[#This Row],[Zaměstnanci FN]:[Cizí]]) -> 1471 | L22: 2003
A23: 21.01. sobota | B23: 68 | G23: 5 | H23: 219 | K23: =SUM(Tabulka_ExterníData_15[[#This Row],[Zaměstnanci FN]:[Cizí]]) -> 73 | L23: 292
A24: 22.01. neděle | B24: 46 | G24: 4 | H24: 221 | K24: =SUM(Tabulka_ExterníData_15[[#This Row],[Zaměstnanci FN]:[Cizí]]) -> 50 | L24: 271
A25: 23.01. pondělí | B25: 1031 | C25: 110 | D25: 9 | E25: 105 | F25: 14 | G25: 148 | H25: 558 | I25: 10 | J25: 39 | K25: =SUM(Tabulka_ExterníData_15[[#This Row],[Zaměstnanci FN]:[Cizí]]) -> 1417 | L25: 1975
A26: 24.01. úterý | B26: 1156 | C26: 146 | D26: 11 | E26: 107 | F26: 11 | G26: 157 | H26: 543 | I26: 10 | J26: 43 | K26: =SUM(Tabulka_ExterníData_15[[#This Row],[Zaměstnanci FN]:[Cizí]]) -> 1588 | L26: 2131
A27: 25.01. středa | B27: 1166 | C27: 151 | D27: 11 | E27: 123 | F27: 12 | G27: 152 | H27: 585 | I27: 10 | J27: 38 | K27: =SUM(Tabulka_ExterníData_15[[#This Row],[Zaměstnanci FN]:[Cizí]]) -> 1615 | L27: 2200
A28: 26.01. čtvrtek | B28: 1240 | C28: 142 | D28: 9 | E28: 124 | F28: 9 | G28: 159 | H28: 529 | I28: 10 | J28: 36 | K28: =SUM(Tabulka_ExterníData_15[[#This Row],[Zaměstnanci FN]:[Cizí]]) -> 1683 | L28: 2212
A29: 27.01. pátek | B29: 1095 | C29: 93 | D29: 7 | E29: 121 | F29: 10 | G29: 138 | H29: 580 | I29: 10 | J29: 36 | K29: =SUM(Tabulka_ExterníData_15[[#This Row],[Zaměstnanci FN]:[Cizí]]) -> 1464 | L29: 2044
A30: 28.01. sobota | B30: 76 | G30: 4 | H30: 221 | K30: =SUM(Tabulka_ExterníData_15[[#This Row],[Zaměstnanci FN]:[Cizí]]) -> 80 | L30: 301
A31: 29.01. neděle | B31: 60 | G31: 6 | H31: 218 | K31: =SUM(Tabulka_ExterníData_15[[#This Row],[Zaměstnanci FN]:[Cizí]]) -> 66 | L31: 284
A32: 30.01. pondělí | B32: 1059 | C32: 111 | D32: 9 | E32: 96 | F32: 10 | G32: 150 | H32: 544 | I32: 10 | J32: 36 | K32: =SUM(Tabulka_ExterníData_15[[#This Row],[Zaměstnanci FN]:[Cizí]]) -> 1435 | L32: 1979
A33: 31.01. úterý | B33: 1144 | C33: 120 | D33: 14 | E33: 112 | F33: 14 | G33: 164 | H33: 569 | I33: 10 | J33: 38 | K33: =SUM(Tabulka_ExterníData_15[[#This Row],[Zaměstnanci FN]:[Cizí]]) -> 1568 | L33: 2137
B34: =SUBTOTAL(109,[Zaměstnanci FN]) -> 25606 | C34: =SUBTOTAL(109,C3:C33) -> 3499 | D34: 211 | E34: 2395 | F34: 262 | G34: 3236 | H34: 14128 | I34: 220 | J34: 854 | K34: =SUBTOTAL(109,[Jídelna celkem]) -> 35209 | L34: =SUBTOTAL(109,[Celkový počet obědů (bez školka a jesle)]) -> 49337

Sheet 02-2017
A1: Stavy jídel za období 1.2.2017 - 28.2.2017
A2: Datum | B2: Zaměstnanci FN | C2: Studenti | D2: Stážisté | E2: Důchodci | F2: Exbio | G2: Cizí | H2: Tablet | I2: Jesle | J2: Školka | K2: Jídelna celkem | L2: Celkový počet obědů (bez školka a jesle)
A3: 01.02. středa | B3: 1218 | C3: 100 | D3: 11 | E3: 123 | F3: 15 | G3: 166 | H3: 605 | I3: 10 | J3: 35 | K3: =SUM(Tabulka_ExterníData_16[[#This Row],[Zaměstnanci FN]:[Cizí]]) -> 1633 | L3: =SUM(H3,K3) -> 2238
A4: 02.02. čtvrtek | B4: 1157 | C4: 91 | D4: 12 | E4: 119 | F4: 12 | G4: 150 | H4: 581 | I4: 10 | J4: 37 | K4: =SUM(Tabulka_ExterníData_16[[#This Row],[Zaměstnanci FN]:[Cizí]]) -> 1541 | L4: 2122
A5: 03.02. pátek | B5: 1048 | C5: 54 | D5: 10 | E5: 109 | F5: 12 | G5: 121 | H5: 524 | I5: 10 | J5: 38 | K5: =SUM(Tabulka_ExterníData_16[[#This Row],[Zaměstnanci FN]:[Cizí]]) -> 1354 | L5: 1878
A6: 04.02. sobota | B6: 70 | G6: 7 | H6: 240 | K6: =SUM(Tabulka_ExterníData_16[[#This Row],[Zaměstnanci FN]:[Cizí]]) -> 77 | L6: 317
A7: 05.02. neděle | B7: 55 | G7: 8 | H7: 216 | K7: =SUM(Tabulka_ExterníData_16[[#This Row],[Zaměstnanci FN]:[Cizí]]) -> 63 | L7: 279
A8: 06.02. pondělí | B8: 1132 | C8: 71 | D8: 8 | E8: 109 | F8: 14 | G8: 152 | H8: 546 | I8: 10 | J8: 35 | K8: =SUM(Tabulka_ExterníData_16[[#This Row],[Zaměstnanci FN]:[Cizí]]) -> 1486 | L8: 2032
A9: 07.02. úterý | B9: 1148 | C9: 75 | D9: 10 | E9: 126 | F9: 11 | G9: 153 | H9: 561 | I9: 10 | J9: 37 | K9: =SUM(Tabulka_ExterníData_16[[#This Row],[Zaměstnanci FN]:[Cizí]]) -> 1523 | L9: 2084
A10: 08.02. středa | B10: 1134 | C10: 79 | D10: 16 | E10: 121 | F10: 14 | G10: 152 | H10: 563 | I10: 10 | J10: 35 | K10: =SUM(Tabulka_ExterníData_16[[#This Row],[Zaměstnanci FN]:[Cizí]]) -> 1516 | L10: 2079
A11: 09.02. čtvrtek | B11: 1177 | C11: 67 | D11: 14 | E11: 110 | F11: 11 | G11: 158 | H11: 561 | I11: 10 | J11: 35 | K11: =SUM(Tabulka_ExterníData_16[[#This Row],[Zaměstnanci FN]:[Cizí]]) -> 1537 | L11: 2098
A12: 10.02. pátek | B12: 1055 | C12: 39 | D12: 10 | E12: 116 | F12: 11 | G12: 127 | H12: 529 | I12: 10 | J12: 35 | K12: =SUM(Tabulka_ExterníData_16[[#This Row],[Zaměstnanci FN]:[Cizí]]) -> 1358 | L12: 1887
A13: 11.02. sobota | B13: 74 | G13: 5 | H13: 229 | K13: =SUM(Tabulka_ExterníData_16[[#This Row],[Zaměstnanci FN]:[Cizí]]) -> 79 | L13: 308
A14: 12.02. neděle | B14: 54 | G14: 4 | H14: 214 | K14: =SUM(Tabulka_ExterníData_16[[#This Row],[Zaměstnanci FN]:[Cizí]]) -> 58 | L14: 272
A15: 13.02. pondělí | B15: 1133 | C15: 95 | D15: 14 | E15: 106 | F15: 15 | G15: 156 | H15: 546 | I15: 10 | J15: 40 | K15: =SUM(Tabulka_ExterníData_16[[#This Row],[Zaměstnanci FN]:[Cizí]]) -> 1519 | L15: 2065
A16: 14.02. úterý | B16: 1134 | C16: 306 | D16: 15 | E16: 120 | F16: 11 | G16: 145 | H16: 576 | I16: 10 | J16: 35 | K16: =SUM(Tabulka_ExterníData_16[[#This Row],[Zaměstnanci FN]:[Cizí]]) -> 1731 | L16: 2307
A17: 15.02. středa | B17: 1166 | C17: 373 | D17: 16 | E17: 125 | F17: 15 | G17: 153 | H17: 581 | I17: 10 | J17: 35 | K17: =SUM(Tabulka_ExterníData_16[[#This Row],[Zaměstnanci FN]:[Cizí]]) -> 1848 | L17: 2429
A18: 16.02. čtvrtek | B18: 1176 | C18: 344 | D18: 15 | E18: 113 | F18: 13 | G18: 159 | H18: 599 | I18: 10 | J18: 35 | K18: =SUM(Tabulka_ExterníData_16[[#This Row],[Zaměstnanci FN]:[Cizí]]) -> 1820 | L18: 2419
A19: 17.02. pátek | B19: 1104 | C19: 182 | D19: 12 | E19: 123 | F19: 14 | G19: 131 | H19: 585 | I19: 10 | J19: 35 | K19: =SUM(Tabulka_ExterníData_16[[#This Row],[Zaměstnanci FN]:[Cizí]]) -> 1566 | L19: 2151
A20: 18.02. sobota | B20: 78 | G20: 3 | H20: 236 | K20: =SUM(Tabulka_ExterníData_16[[#This Row],[Zaměstnanci FN]:[Cizí]]) -> 81 | L20: 317
A21: 19.02. neděle | B21: 67 | G21: 5 | H21: 215 | K21: =SUM(Tabulka_ExterníData_16[[#This Row],[Zaměstnanci FN]:[Cizí]]) -> 72 | L21: 287
A22: 20.02. pondělí | B22: 1113 | C22: 364 | D22: 12 | E22: 105 | F22: 15 | G22: 148 | H22: 554 | I22: 10 | J22: 42 | K22: =SUM(Tabulka_ExterníData_16[[#This Row],[Zaměstnanci FN]:[Cizí]]) -> 1757 | L22: 2311
A23: 21.02. úterý | B23: 1175 | C23: 448 | D23: 11 | E23: 132 | F23: 12 | G23: 152 | H23: 593 | I23: 10 | J23: 35 | K23: =SUM(Tabulka_ExterníData_16[[#This Row],[Zaměstnanci FN]:[Cizí]]) -> 1930 | L23: 2523
A24: 22.02. středa | B24: 1181 | C24: 429 | D24: 13 | E24: 118 | F24: 15 | G24: 145 | H24: 577 | I24: 10 | J24: 35 | K24: =SUM(Tabulka_ExterníData_16[[#This Row],[Zaměstnanci FN]:[Cizí]]) -> 1901 | L24: 2478
A25: 23.02. čtvrtek | B25: 1222 | C25: 336 | D25: 18 | E25: 118 | F25: 14 | G25: 164 | H25: 572 | I25: 10 | J25: 35 | K25: =SUM(Tabulka_ExterníData_16[[#This Row],[Zaměstnanci FN]:[Cizí]]) -> 1872 | L25: 2444
A26: 24.02. pátek | B26: 1097 | C26: 183 | D26: 12 | E26: 125 | F26: 11 | G26: 134 | H26: 579 | I26: 10 | J26: 35 | K26: =SUM(Tabulka_ExterníData_16[[#This Row],[Zaměstnanci FN]:[Cizí]]) -> 1562 | L26: 2141
A27: 25.02. sobota | B27: 76 | G27: 4 | H27: 223 | K27: =SUM(Tabulka_ExterníData_16[[#This Row],[Zaměstnanci FN]:[Cizí]]) -> 80 | L27: 303
A28: 26.02. neděle | B28: 65 | G28: 4 | H28: 216 | K28: =SUM(Tabulka_ExterníData_16[[#This Row],[Zaměstnanci FN]:[Cizí]]) -> 69 | L28: 285
A29: 27.02. pondělí | B29: 952 | C29: 342 | D29: 10 | E29: 104 | F29: 15 | G29: 127 | H29: 473 | I29: 10 | J29: 35 | K29: =SUM(Tabulka_ExterníData_16[[#This Row],[Zaměstnanci FN]:[Cizí]]) -> 1550 | L29: 2023
A30: 28.02. úterý | B30: 1019 | C30: 428 | D30: 10 | E30: 116 | F30: 13 | G30: 130 | H30: 528 | I30: 10 | J30: 35 | K30: =SUM(Tabulka_ExterníData_16[[#This Row],[Zaměstnanci FN]:[Cizí]]) -> 1716 | L30: 2244
B31: =SUBTOTAL(109,[Zaměstnanci FN]) -> 23080 | C31: =SUBTOTAL(109,C3:C30) -> 4406 | D31: 249 | E31: 2338 | F31: 263 | G31: 2963 | H31: 13022 | I31: 200 | J31: 719 | K31: =SUBTOTAL(109,[Jídelna celkem]) -> 33299 | L31: =SUBTOTAL(109,[Celkový počet obědů (bez školka a jesle)]) -> 46321

Sheet 03-2017
A1: Stavy jídel za období 1.3.2017 - 31.3.2017
A2: Datum | B2: Zaměstnanci FN | C2: Studenti | D2: Stážisté | E2: Důchodci | F2: Exbio | G2: Cizí | H2: Tablet | I2: Jesle | J2: Školka | K2: Jídelna celkem | L2: Celkový počet obědů (bez školka a jesle)
A3: 01.03. středa | B3: 1001 | C3: 411 | D3: 11 | E3: 133 | F3: 14 | G3: 127 | H3: 505 | I3: 10 | J3: 35 | K3: =SUM(Tabulka_ExterníData_17[[#This Row],[Zaměstnanci FN]:[Cizí]]) -> 1697 | L3: =SUM(H3,K3) -> 2202
A4: 02.03. čtvrtek | B4: 1009 | C4: 387 | D4: 11 | E4: 113 | F4: 12 | G4: 123 | H4: 506 | I4: 10 | J4: 35 | K4: =SUM(Tabulka_ExterníData_17[[#This Row],[Zaměstnanci FN]:[Cizí]]) -> 1655 | L4: 2161
A5: 03.03. pátek | B5: 931 | C5: 224 | D5: 4 | E5: 115 | F5: 12 | G5: 98 | H5: 489 | I5: 10 | J5: 35 | K5: =SUM(Tabulka_ExterníData_17[[#This Row],[Zaměstnanci FN]:[Cizí]]) -> 1384 | L5: 1873
A6: 04.03. sobota | B6: 63 | G6: 6 | H6: 221 | K6: =SUM(Tabulka_ExterníData_17[[#This Row],[Zaměstnanci FN]:[Cizí]]) -> 69 | L6: 290
A7: 05.03. neděle | B7: 56 | G7: 7 | H7: 213 | K7: =SUM(Tabulka_ExterníData_17[[#This Row],[Zaměstnanci FN]:[Cizí]]) -> 63 | L7: 276
A8: 06.03. pondělí | B8: 1093 | C8: 392 | D8: 11 | E8: 96 | F8: 13 | G8: 149 | H8: 555 | I8: 10 | J8: 39 | K8: =SUM(Tabulka_ExterníData_17[[#This Row],[Zaměstnanci FN]:[Cizí]]) -> 1754 | L8: 2309
A9: 07.03. úterý | B9: 1142 | C9: 511 | D9: 13 | E9: 113 | F9: 11 | G9: 147 | H9: 590 | I9: 10 | J9: 37 | K9: =SUM(Tabulka_ExterníData_17[[#This Row],[Zaměstnanci FN]:[Cizí]]) -> 1937 | L9: 2527
A10: 08.03. středa | B10: 1210 | C10: 479 | D10: 17 | E10: 128 | F10: 14 | G10: 141 | H10: 613 | I10: 10 | J10: 37 | K10: =SUM(Tabulka_ExterníData_17[[#This Row],[Zaměstnanci FN]:[Cizí]]) -> 1989 | L10: 2602
A11: 09.03. čtvrtek | B11: 1197 | C11: 435 | D11: 15 | E11: 113 | F11: 10 | G11: 138 | H11: 556 | I11: 10 | J11: 37 | K11: =SUM(Tabulka_ExterníData_17[[#This Row],[Zaměstnanci FN]:[Cizí]]) -> 1908 | L11: 2464
A12: 10.03. pátek | B12: 1154 | C12: 191 | D12: 9 | E12: 120 | F12: 13 | G12: 133 | H12: 589 | I12: 10 | J12: 37 | K12: =SUM(Tabulka_ExterníData_17[[#This Row],[Zaměstnanci FN]:[Cizí]]) -> 1620 | L12: 2209
A13: 11.03. sobota | B13: 78 | G13: 6 | H13: 229 | K13: =SUM(Tabulka_ExterníData_17[[#This Row],[Zaměstnanci FN]:[Cizí]]) -> 84 | L13: 313
A14: 12.03. neděle | B14: 60 | G14: 5 | H14: 225 | K14: =SUM(Tabulka_ExterníData_17[[#This Row],[Zaměstnanci FN]:[Cizí]]) -> 65 | L14: 290
A15: 13.03. pondělí | B15: 1108 | C15: 408 | D15: 10 | E15: 112 | F15: 13 | G15: 140 | H15: 539 | I15: 10 | J15: 42 | K15: =SUM(Tabulka_ExterníData_17[[#This Row],[Zaměstnanci FN]:[Cizí]]) -> 1791 | L15: 2330
A16: 14.03. úterý | B16: 1178 | C16: 502 | D16: 11 | E16: 117 | F16: 13 | G16: 166 | H16: 596 | I16: 10 | J16: 36 | K16: =SUM(Tabulka_ExterníData_17[[#This Row],[Zaměstnanci FN]:[Cizí]]) -> 1987 | L16: 2583
A17: 15.03. středa | B17: 1170 | C17: 510 | D17: 15 | E17: 127 | F17: 14 | G17: 159 | H17: 596 | I17: 10 | J17: 36 | K17: =SUM(Tabulka_ExterníData_17[[#This Row],[Zaměstnanci FN]:[Cizí]]) -> 1995 | L17: 2591
A18: 16.03. čtvrtek | B18: 1175 | C18: 461 | D18: 15 | E18: 113 | F18: 11 | G18: 138 | H18: 556 | I18: 10 | J18: 35 | K18: =SUM(Tabulka_ExterníData_17[[#This Row],[Zaměstnanci FN]:[Cizí]]) -> 1913 | L18: 2469
A19: 17.03. pátek | B19: 1125 | C19: 265 | D19: 8 | E19: 125 | F19: 14 | G19: 130 | H19: 535 | I19: 10 | J19: 38 | K19: =SUM(Tabulka_ExterníData_17[[#This Row],[Zaměstnanci FN]:[Cizí]]) -> 1667 | L19: 2202
A20: 18.03. sobota | B20: 70 | G20: 3 | H20: 230 | K20: =SUM(Tabulka_ExterníData_17[[#This Row],[Zaměstnanci FN]:[Cizí]]) -> 73 | L20: 303
A21: 19.03. neděle | B21: 54 | G21: 5 | H21: 256 | K21: =SUM(Tabulka_ExterníData_17[[#This Row],[Zaměstnanci FN]:[Cizí]]) -> 59 | L21: 315
A22: 20.03. pondělí | B22: 1108 | C22: 446 | D22: 9 | E22: 107 | F22: 14 | G22: 152 | H22: 568 | I22: 10 | J22: 42 | K22: =SUM(Tabulka_ExterníData_17[[#This Row],[Zaměstnanci FN]:[Cizí]]) -> 1836 | L22: 2404
A23: 21.03. úterý | B23: 1173 | C23: 520 | D23: 12 | E23: 116 | F23: 13 | G23: 152 | H23: 575 | I23: 10 | J23: 40 | K23: =SUM(Tabulka_ExterníData_17[[#This Row],[Zaměstnanci FN]:[Cizí]]) -> 1986 | L23: 2561
A24: 22.03. středa | B24: 1155 | C24: 516 | D24: 12 | E24: 122 | F24: 12 | G24: 144 | H24: 576 | I24: 10 | J24: 35 | K24: =SUM(Tabulka_ExterníData_17[[#This Row],[Zaměstnanci FN]:[Cizí]]) -> 1961 | L24: 2537
A25: 23.03. čtvrtek | B25: 1147 | C25: 455 | D25: 12 | E25: 126 | F25: 10 | G25: 139 | H25: 583 | I25: 10 | J25: 35 | K25: =SUM(Tabulka_ExterníData_17[[#This Row],[Zaměstnanci FN]:[Cizí]]) -> 1889 | L25: 2472
A26: 24.03. pátek | B26: 1130 | C26: 225 | D26: 12 | E26: 138 | F26: 12 | G26: 124 | H26: 570 | I26: 10 | J26: 36 | K26: =SUM(Tabulka_ExterníData_17[[#This Row],[Zaměstnanci FN]:[Cizí]]) -> 1641 | L26: 2211
A27: 25.03. sobota | B27: 84 | G27: 8 | H27: 224 | K27: =SUM(Tabulka_ExterníData_17[[#This Row],[Zaměstnanci FN]:[Cizí]]) -> 92 | L27: 316
A28: 26.03. neděle | B28: 60 | G28: 5 | H28: 219 | K28: =SUM(Tabulka_ExterníData_17[[#This Row],[Zaměstnanci FN]:[Cizí]]) -> 65 | L28: 284
A29: 27.03. pondělí | B29: 1109 | C29: 368 | D29: 11 | E29: 117 | F29: 14 | G29: 148 | H29: 561 | I29: 10 | J29: 36 | K29: =SUM(Tabulka_ExterníData_17[[#This Row],[Zaměstnanci FN]:[Cizí]]) -> 1767 | L29: 2328
A30: 28.03. úterý | B30: 1149 | C30: 514 | D30: 17 | E30: 123 | F30: 13 | G30: 167 | H30: 576 | I30: 10 | J30: 37 | K30: =SUM(Tabulka_ExterníData_17[[#This Row],[Zaměstnanci FN]:[Cizí]]) -> 1983 | L30: 2559
A31: 29.03. středa | B31: 1225 | C31: 493 | D31: 14 | E31: 133 | F31: 14 | G31: 165 | H31: 613 | I31: 10 | J31: 35 | K31: =SUM(Tabulka_ExterníData_17[[#This Row],[Zaměstnanci FN]:[Cizí]]) -> 2044 | L31: 2657
A32: 30.03. čtvrtek | B32: 1228 | C32: 443 | D32: 15 | E32: 131 | F32: 13 | G32: 155 | H32: 590 | I32: 10 | J32: 37 | K32: =SUM(Tabulka_ExterníData_17[[#This Row],[Zaměstnanci FN]:[Cizí]]) -> 1985 | L32: 2575
A33: 31.03. pátek | B33: 1123 | C33: 246 | D33: 13 | E33: 129 | F33: 13 | G33: 146 | H33: 593 | I33: 10 | J33: 35 | K33: =SUM(Tabulka_ExterníData_17[[#This Row],[Zaměstnanci FN]:[Cizí]]) -> 1670 | L33: 2263
B34: =SUBTOTAL(109,[Zaměstnanci FN]) -> 26565 | C34: =SUBTOTAL(109,C3:C33) -> 9402 | D34: 277 | E34: 2767 | F34: 292 | G34: 3326 | H34: 14847 | I34: 230 | J34: 847 | K34: =SUBTOTAL(109,[Jídelna celkem]) -> 42629 | L34: =SUBTOTAL(109,[Celkový počet obědů (bez školka a jesle)]) -> 57476

Sheet 04-2017
A1: Stavy jídel za období 1.4.2017 - 30.4.2017
A2: Datum | B2: Zaměstnanci FN | C2: Studenti | D2: Stážisté | E2: Důchodci | F2: Exbio | G2: Cizí | H2: Tablet | I2: Jesle | J2: Školka | K2: Jídelna celkem | L2: Celkový počet obědů (bez školka a jesle)
A3: 01.04. sobota | B3: 57 | G3: 9 | H3: 223 | K3: =SUM(Tabulka_ExterníData_18[[#This Row],[Zaměstnanci FN]:[Cizí]]) -> 66 | L3: =SUM(H3,K3) -> 289
A4: 02.04. neděle | B4: 47 | G4: 7 | H4: 222 | K4: =SUM(Tabulka_ExterníData_18[[#This Row],[Zaměstnanci FN]:[Cizí]]) -> 54 | L4: 276
A5: 03.04. pondělí | B5: 1141 | C5: 400 | D5: 9 | E5: 115 | F5: 12 | G5: 158 | H5: 554 | I5: 10 | J5: 42 | K5: =SUM(Tabulka_ExterníData_18[[#This Row],[Zaměstnanci FN]:[Cizí]]) -> 1835 | L5: 2389
A6: 04.04. úterý | B6: 1165 | C6: 440 | D6: 13 | E6: 125 | F6: 10 | G6: 159 | H6: 560 | I6: 10 | J6: 41 | K6: =SUM(Tabulka_ExterníData_18[[#This Row],[Zaměstnanci FN]:[Cizí]]) -> 1912 | L6: 2472
A7: 05.04. středa | B7: 1194 | C7: 472 | D7: 15 | E7: 124 | F7: 14 | G7: 141 | H7: 585 | I7: 10 | J7: 38 | K7: =SUM(Tabulka_ExterníData_18[[#This Row],[Zaměstnanci FN]:[Cizí]]) -> 1960 | L7: 2545
A8: 06.04. čtvrtek | B8: 1172 | C8: 411 | D8: 15 | E8: 125 | F8: 11 | G8: 146 | H8: 551 | I8: 10 | J8: 42 | K8: =SUM(Tabulka_ExterníData_18[[#This Row],[Zaměstnanci FN]:[Cizí]]) -> 1880 | L8: 2431
A9: 07.04. pátek | B9: 1116 | C9: 230 | D9: 12 | E9: 130 | F9: 12 | G9: 136 | H9: 530 | I9: 10 | J9: 38 | K9: =SUM(Tabulka_ExterníData_18[[#This Row],[Zaměstnanci FN]:[Cizí]]) -> 1636 | L9: 2166
A10: 08.04. sobota | B10: 72 | G10: 7 | H10: 230 | K10: =SUM(Tabulka_ExterníData_18[[#This Row],[Zaměstnanci FN]:[Cizí]]) -> 79 | L10: 309
A11: 09.04. neděle | B11: 63 | G11: 10 | H11: 224 | K11: =SUM(Tabulka_ExterníData_18[[#This Row],[Zaměstnanci FN]:[Cizí]]) -> 73 | L11: 297
A12: 10.04. pondělí | B12: 1107 | C12: 364 | D12: 15 | E12: 116 | F12: 13 | G12: 155 | H12: 565 | I12: 10 | J12: 43 | K12: =SUM(Tabulka_ExterníData_18[[#This Row],[Zaměstnanci FN]:[Cizí]]) -> 1770 | L12: 2335
A13: 11.04. úterý | B13: 1231 | C13: 496 | D13: 15 | E13: 128 | F13: 14 | G13: 162 | H13: 590 | I13: 10 | J13: 41 | K13: =SUM(Tabulka_ExterníData_18[[#This Row],[Zaměstnanci FN]:[Cizí]]) -> 2046 | L13: 2636
A14: 12.04. středa | B14: 1199 | C14: 498 | D14: 14 | E14: 129 | F14: 13 | G14: 173 | H14: 598 | I14: 10 | J14: 44 | K14: =SUM(Tabulka_ExterníData_18[[#This Row],[Zaměstnanci FN]:[Cizí]]) -> 2026 | L14: 2624
A15: 13.04. čtvrtek | B15: 1086 | C15: 334 | D15: 8 | E15: 117 | F15: 13 | G15: 136 | H15: 510 | I15: 10 | J15: 37 | K15: =SUM(Tabulka_ExterníData_18[[#This Row],[Zaměstnanci FN]:[Cizí]]) -> 1694 | L15: 2204
A16: 14.04. pátek | B16: 69 | D16: 1 | E16: 3 | G16: 8 | H16: 216 | K16: =SUM(Tabulka_ExterníData_18[[#This Row],[Zaměstnanci FN]:[Cizí]]) -> 81 | L16: 297
A17: 15.04. sobota | B17: 60 | G17: 3 | H17: 212 | K17: =SUM(Tabulka_ExterníData_18[[#This Row],[Zaměstnanci FN]:[Cizí]]) -> 63 | L17: 275
A18: 16.04. neděle | B18: 60 | G18: 4 | H18: 196 | K18: =SUM(Tabulka_ExterníData_18[[#This Row],[Zaměstnanci FN]:[Cizí]]) -> 64 | L18: 260
A19: 17.04. pondělí | B19: 72 | E19: 2 | G19: 8 | H19: 206 | K19: =SUM(Tabulka_ExterníData_18[[#This Row],[Zaměstnanci FN]:[Cizí]]) -> 82 | L19: 288
A20: 18.04. úterý | B20: 1072 | C20: 342 | D20: 14 | E20: 111 | F20: 11 | G20: 157 | H20: 530 | I20: 10 | J20: 37 | K20: =SUM(Tabulka_ExterníData_18[[#This Row],[Zaměstnanci FN]:[Cizí]]) -> 1707 | L20: 2237
A21: 19.04. středa | B21: 1138 | C21: 478 | D21: 13 | E21: 115 | F21: 14 | G21: 147 | H21: 561 | I21: 10 | J21: 39 | K21: =SUM(Tabulka_ExterníData_18[[#This Row],[Zaměstnanci FN]:[Cizí]]) -> 1905 | L21: 2466
A22: 20.04. čtvrtek | B22: 1153 | C22: 437 | D22: 12 | E22: 132 | F22: 14 | G22: 161 | H22: 572 | I22: 10 | J22: 42 | K22: =SUM(Tabulka_ExterníData_18[[#This Row],[Zaměstnanci FN]:[Cizí]]) -> 1909 | L22: 2481
A23: 21.04. pátek | B23: 1113 | C23: 267 | D23: 11 | E23: 115 | F23: 13 | G23: 142 | H23: 552 | I23: 10 | J23: 42 | K23: =SUM(Tabulka_ExterníData_18[[#This Row],[Zaměstnanci FN]:[Cizí]]) -> 1661 | L23: 2213
A24: 22.04. sobota | B24: 60 | G24: 9 | H24: 222 | K24: =SUM(Tabulka_ExterníData_18[[#This Row],[Zaměstnanci FN]:[Cizí]]) -> 69 | L24: 291
A25: 23.04. neděle | B25: 56 | G25: 5 | H25: 220 | K25: =SUM(Tabulka_ExterníData_18[[#This Row],[Zaměstnanci FN]:[Cizí]]) -> 61 | L25: 281
A26: 24.04. pondělí | B26: 1095 | C26: 384 | D26: 16 | E26: 115 | F26: 13 | G26: 147 | H26: 561 | I26: 10 | J26: 43 | K26: =SUM(Tabulka_ExterníData_18[[#This Row],[Zaměstnanci FN]:[Cizí]]) -> 1770 | L26: 2331
A27: 25.04. úterý | B27: 1182 | C27: 540 | D27: 15 | E27: 132 | F27: 11 | G27: 164 | H27: 593 | I27: 10 | J27: 42 | K27: =SUM(Tabulka_ExterníData_18[[#This Row],[Zaměstnanci FN]:[Cizí]]) -> 2044 | L27: 2637
A28: 26.04. středa | B28: 1188 | C28: 510 | D28: 17 | E28: 122 | F28: 14 | G28: 148 | H28: 570 | I28: 10 | J28: 40 | K28: =SUM(Tabulka_ExterníData_18[[#This Row],[Zaměstnanci FN]:[Cizí]]) -> 1999 | L28: 2569
A29: 27.04. čtvrtek | B29: 1120 | C29: 454 | D29: 14 | E29: 111 | F29: 12 | G29: 142 | H29: 557 | I29: 10 | J29: 42 | K29: =SUM(Tabulka_ExterníData_18[[#This Row],[Zaměstnanci FN]:[Cizí]]) -> 1853 | L29: 2410
A30: 28.04. pátek | B30: 1105 | C30: 266 | D30: 6 | E30: 127 | F30: 14 | G30: 130 | H30: 573 | I30: 10 | J30: 41 | K30: =SUM(Tabulka_ExterníData_18[[#This Row],[Zaměstnanci FN]:[Cizí]]) -> 1648 | L30: 2221
A31: 29.04. sobota | B31: 66 | G31: 8 | H31: 225 | K31: =SUM(Tabulka_ExterníData_18[[#This Row],[Zaměstnanci FN]:[Cizí]]) -> 74 | L31: 299
A32: 30.04. neděle | B32: 55 | G32: 10 | H32: 229 | K32: =SUM(Tabulka_ExterníData_18[[#This Row],[Zaměstnanci FN]:[Cizí]]) -> 65 | L32: 294
B33: =SUBTOTAL(109,[Zaměstnanci FN]) -> 21314 | C33: =SUBTOTAL(109,C3:C32) -> 7323 | D33: 235 | E33: 2194 | F33: 228 | G33: 2792 | H33: 12737 | I33: 180 | J33: 734 | K33: =SUBTOTAL(109,[Jídelna celkem]) -> 34086 | L33: =SUBTOTAL(109,[Celkový počet obědů (bez školka a jesle)]) -> 46823

Sheet 05-2017
A1: Stavy jídel za období 1.5.2017 - 31.5.2017
A2: Datum | B2: Zaměstnanci FN | C2: Studenti | D2: Stážisté | E2: Důchodci | F2: Exbio | G2: Cizí | H2: Tablet | I2: Jesle | J2: Školka | K2: Jídelna celkem | L2: Celkový počet obědů (bez školka a jesle)
A3: 01.05. pondělí | B3: 62 | E3: 1 | G3: 8 | H3: 216 | K3: =SUM(Tabulka_ExterníData_110[[#This Row],[Zaměstnanci FN]:[Cizí]]) -> 71 | L3: =SUM(H3,K3) -> 287
A4: 02.05. úterý | B4: 1163 | C4: 388 | D4: 11 | E4: 118 | F4: 13 | G4: 156 | H4: 541 | I4: 10 | J4: 44 | K4: =SUM(Tabulka_ExterníData_110[[#This Row],[Zaměstnanci FN]:[Cizí]]) -> 1849 | L4: 2390
A5: 03.05. středa | B5: 1166 | C5: 462 | D5: 8 | E5: 118 | F5: 12 | G5: 155 | H5: 563 | I5: 10 | J5: 42 | K5: =SUM(Tabulka_ExterníData_110[[#This Row],[Zaměstnanci FN]:[Cizí]]) -> 1921 | L5: 2484
A6: 04.05. čtvrtek | B6: 1206 | C6: 390 | D6: 12 | E6: 113 | F6: 11 | G6: 153 | H6: 510 | I6: 10 | J6: 45 | K6: =SUM(Tabulka_ExterníData_110[[#This Row],[Zaměstnanci FN]:[Cizí]]) -> 1885 | L6: 2395
A7: 05.05. pátek | B7: 1152 | C7: 213 | D7: 10 | E7: 130 | F7: 12 | G7: 137 | H7: 569 | I7: 10 | J7: 45 | K7: =SUM(Tabulka_ExterníData_110[[#This Row],[Zaměstnanci FN]:[Cizí]]) -> 1654 | L7: 2223
A8: 06.05. sobota | B8: 65 | G8: 5 | H8: 216 | K8: =SUM(Tabulka_ExterníData_110[[#This Row],[Zaměstnanci FN]:[Cizí]]) -> 70 | L8: 286
A9: 07.05. neděle | B9: 54 | G9: 6 | H9: 215 | K9: =SUM(Tabulka_ExterníData_110[[#This Row],[Zaměstnanci FN]:[Cizí]]) -> 60 | L9: 275
A10: 08.05. pondělí | B10: 61 | G10: 9 | H10: 213 | K10: =SUM(Tabulka_ExterníData_110[[#This Row],[Zaměstnanci FN]:[Cizí]]) -> 70 | L10: 283
A11: 09.05. úterý | B11: 1078 | C11: 327 | D11: 10 | E11: 113 | F11: 15 | G11: 146 | H11: 541 | I11: 10 | J11: 45 | K11: =SUM(Tabulka_ExterníData_110[[#This Row],[Zaměstnanci FN]:[Cizí]]) -> 1689 | L11: 2230
A12: 10.05. středa | B12: 1159 | C12: 429 | D12: 9 | E12: 119 | F12: 12 | G12: 131 | H12: 559 | I12: 10 | J12: 45 | K12: =SUM(Tabulka_ExterníData_110[[#This Row],[Zaměstnanci FN]:[Cizí]]) -> 1859 | L12: 2418
A13: 11.05. čtvrtek | B13: 1154 | C13: 407 | D13: 7 | E13: 116 | F13: 14 | G13: 148 | H13: 568 | I13: 10 | J13: 40 | K13: =SUM(Tabulka_ExterníData_110[[#This Row],[Zaměstnanci FN]:[Cizí]]) -> 1846 | L13: 2414
A14: 12.05. pátek | B14: 1106 | C14: 262 | D14: 7 | E14: 126 | F14: 11 | G14: 133 | H14: 538 | I14: 10 | J14: 43 | K14: =SUM(Tabulka_ExterníData_110[[#This Row],[Zaměstnanci FN]:[Cizí]]) -> 1645 | L14: 2183
A15: 13.05. sobota | B15: 68 | G15: 6 | H15: 211 | K15: =SUM(Tabulka_ExterníData_110[[#This Row],[Zaměstnanci FN]:[Cizí]]) -> 74 | L15: 285
A16: 14.05. neděle | B16: 61 | G16: 8 | H16: 226 | K16: =SUM(Tabulka_ExterníData_110[[#This Row],[Zaměstnanci FN]:[Cizí]]) -> 69 | L16: 295
A17: 15.05. pondělí | B17: 1117 | C17: 332 | D17: 10 | E17: 111 | F17: 15 | G17: 151 | H17: 557 | I17: 10 | J17: 45 | K17: =SUM(Tabulka_ExterníData_110[[#This Row],[Zaměstnanci FN]:[Cizí]]) -> 1736 | L17: 2293
A18: 16.05. úterý | B18: 1155 | C18: 403 | D18: 12 | E18: 120 | F18: 12 | G18: 154 | H18: 562 | I18: 10 | J18: 43 | K18: =SUM(Tabulka_ExterníData_110[[#This Row],[Zaměstnanci FN]:[Cizí]]) -> 1856 | L18: 2418
A19: 17.05. středa | B19: 1193 | C19: 409 | D19: 9 | E19: 115 | F19: 15 | G19: 152 | H19: 585 | I19: 10 | J19: 42 | K19: =SUM(Tabulka_ExterníData_110[[#This Row],[Zaměstnanci FN]:[Cizí]]) -> 1893 | L19: 2478
A20: 18.05. čtvrtek | B20: 1136 | C20: 331 | D20: 8 | E20: 120 | F20: 13 | G20: 150 | H20: 569 | I20: 10 | J20: 39 | K20: =SUM(Tabulka_ExterníData_110[[#This Row],[Zaměstnanci FN]:[Cizí]]) -> 1758 | L20: 2327
A21: 19.05. pátek | B21: 1092 | C21: 209 | D21: 7 | E21: 120 | F21: 12 | G21: 127 | H21: 577 | I21: 10 | J21: 40 | K21: =SUM(Tabulka_ExterníData_110[[#This Row],[Zaměstnanci FN]:[Cizí]]) -> 1567 | L21: 2144
A22: 20.05. sobota | B22: 60 | G22: 9 | H22: 235 | K22: =SUM(Tabulka_ExterníData_110[[#This Row],[Zaměstnanci FN]:[Cizí]]) -> 69 | L22: 304
A23: 21.05. neděle | B23: 48 | G23: 5 | H23: 219 | K23: =SUM(Tabulka_ExterníData_110[[#This Row],[Zaměstnanci FN]:[Cizí]]) -> 53 | L23: 272
A24: 22.05. pondělí | B24: 1073 | C24: 247 | D24: 9 | E24: 113 | F24: 14 | G24: 148 | H24: 546 | I24: 12 | J24: 42 | K24: =SUM(Tabulka_ExterníData_110[[#This Row],[Zaměstnanci FN]:[Cizí]]) -> 1604 | L24: 2150
A25: 23.05. úterý | B25: 1168 | C25: 291 | D25: 5 | E25: 125 | F25: 11 | G25: 160 | H25: 581 | I25: 10 | J25: 44 | K25: =SUM(Tabulka_ExterníData_110[[#This Row],[Zaměstnanci FN]:[Cizí]]) -> 1760 | L25: 2341
A26: 24.05. středa | B26: 1193 | C26: 296 | D26: 6 | E26: 112 | F26: 14 | G26: 160 | H26: 595 | I26: 10 | J26: 42 | K26: =SUM(Tabulka_ExterníData_110[[#This Row],[Zaměstnanci FN]:[Cizí]]) -> 1781 | L26: 2376
A27: 25.05. čtvrtek | B27: 1175 | C27: 257 | D27: 4 | E27: 122 | F27: 10 | G27: 148 | H27: 586 | I27: 10 | J27: 41 | K27: =SUM(Tabulka_ExterníData_110[[#This Row],[Zaměstnanci FN]:[Cizí]]) -> 1716 | L27: 2302
A28: 26.05. pátek | B28: 1080 | C28: 164 | D28: 6 | E28: 117 | F28: 13 | G28: 135 | H28: 556 | I28: 10 | J28: 39 | K28: =SUM(Tabulka_ExterníData_110[[#This Row],[Zaměstnanci FN]:[Cizí]]) -> 1515 | L28: 2071
A29: 27.05. sobota | B29: 66 | G29: 7 | H29: 220 | K29: =SUM(Tabulka_ExterníData_110[[#This Row],[Zaměstnanci FN]:[Cizí]]) -> 73 | L29: 293
A30: 28.05. neděle | B30: 56 | G30: 8 | H30: 226 | K30: =SUM(Tabulka_ExterníData_110[[#This Row],[Zaměstnanci FN]:[Cizí]]) -> 64 | L30: 290
A31: 29.05. pondělí | B31: 989 | C31: 132 | D31: 4 | E31: 101 | F31: 15 | G31: 143 | H31: 544 | I31: 10 | J31: 44 | K31: =SUM(Tabulka_ExterníData_110[[#This Row],[Zaměstnanci FN]:[Cizí]]) -> 1384 | L31: 1928
A32: 30.05. úterý | B32: 1081 | C32: 143 | D32: 2 | E32: 111 | F32: 12 | G32: 151 | H32: 524 | I32: 10 | J32: 50 | K32: =SUM(Tabulka_ExterníData_110[[#This Row],[Zaměstnanci FN]:[Cizí]]) -> 1500 | L32: 2024
A33: 31.05. středa | B33: 1172 | C33: 165 | D33: 4 | E33: 122 | F33: 14 | G33: 145 | H33: 562 | I33: 10 | J33: 41 | K33: =SUM(Tabulka_ExterníData_110[[#This Row],[Zaměstnanci FN]:[Cizí]]) -> 1622 | L33: 2184
B34: =SUBTOTAL(109,[Zaměstnanci FN]) -> 24409 | C34: =SUBTOTAL(109,C3:C33) -> 6257 | D34: 160 | E34: 2463 | F34: 270 | G34: 3154 | H34: 13930 | I34: 212 | J34: 901 | K34: =SUBTOTAL(109,[Jídelna celkem]) -> 36713 | L34: =SUBTOTAL(109,[Celkový počet obědů (bez školka a jesle)]) -> 50643

Sheet 06-2017
A1: Stavy jídel za období 1.6.2017 - 30.6.2017
A2: Datum | B2: Zaměstnanci FN | C2: Studenti | D2: Stážisté | E2: Důchodci | F2: Exbio | G2: Cizí | H2: Tablet | I2: Jesle | J2: Školka | K2: Jídelna celkem | L2: Celkový počet obědů (bez školka a jesle)
A3: 01.06. čtvrtek | B3: 1154 | C3: 158 | D3: 2 | E3: 120 | F3: 13 | G3: 141 | H3: 568 | I3: 10 | J3: 44 | K3: =SUM(Tabulka_ExterníData_111[[#This Row],[Zaměstnanci FN]:[Cizí]]) -> 1588 | L3: =SUM(H3,K3) -> 2156
A4: 02.06. pátek | B4: 1051 | C4: 99 | D4: 5 | E4: 115 | F4: 11 | G4: 110 | H4: 505 | I4: 10 | J4: 44 | K4: =SUM(Tabulka_ExterníData_111[[#This Row],[Zaměstnanci FN]:[Cizí]]) -> 1391 | L4: 1896
A5: 03.06. sobota | B5: 72 | G5: 6 | H5: 220 | K5: =SUM(Tabulka_ExterníData_111[[#This Row],[Zaměstnanci FN]:[Cizí]]) -> 78 | L5: 298
A6: 04.06. neděle | B6: 51 | G6: 7 | H6: 231 | K6: =SUM(Tabulka_ExterníData_111[[#This Row],[Zaměstnanci FN]:[Cizí]]) -> 58 | L6: 289
A7: 05.06. pondělí | B7: 1101 | C7: 75 | D7: 3 | E7: 100 | F7: 13 | G7: 141 | H7: 510 | I7: 10 | J7: 47 | K7: =SUM(Tabulka_ExterníData_111[[#This Row],[Zaměstnanci FN]:[Cizí]]) -> 1433 | L7: 1943
A8: 06.06. úterý | B8: 1176 | C8: 101 | D8: 2 | E8: 115 | F8: 11 | G8: 149 | H8: 550 | I8: 10 | J8: 45 | K8: =SUM(Tabulka_ExterníData_111[[#This Row],[Zaměstnanci FN]:[Cizí]]) -> 1554 | L8: 2104
A9: 07.06. středa | B9: 1204 | C9: 105 | D9: 3 | E9: 114 | F9: 14 | G9: 156 | H9: 557 | I9: 10 | J9: 49 | K9: =SUM(Tabulka_ExterníData_111[[#This Row],[Zaměstnanci FN]:[Cizí]]) -> 1596 | L9: 2153
A10: 08.06. čtvrtek | B10: 1170 | C10: 104 | D10: 3 | E10: 115 | F10: 11 | G10: 159 | H10: 566 | I10: 10 | J10: 49 | K10: =SUM(Tabulka_ExterníData_111[[#This Row],[Zaměstnanci FN]:[Cizí]]) -> 1562 | L10: 2128
A11: 09.06. pátek | B11: 1085 | C11: 84 | D11: 3 | E11: 116 | F11: 11 | G11: 167 | H11: 542 | I11: 10 | J11: 38 | K11: =SUM(Tabulka_ExterníData_111[[#This Row],[Zaměstnanci FN]:[Cizí]]) -> 1466 | L11: 2008
A12: 10.06. sobota | B12: 65 | G12: 6 | H12: 227 | K12: =SUM(Tabulka_ExterníData_111[[#This Row],[Zaměstnanci FN]:[Cizí]]) -> 71 | L12: 298
A13: 11.06. neděle | B13: 53 | G13: 6 | H13: 228 | K13: =SUM(Tabulka_ExterníData_111[[#This Row],[Zaměstnanci FN]:[Cizí]]) -> 59 | L13: 287
A14: 12.06. pondělí | B14: 1083 | C14: 68 | D14: 2 | E14: 102 | F14: 14 | G14: 143 | H14: 531 | I14: 10 | J14: 42 | K14: =SUM(Tabulka_ExterníData_111[[#This Row],[Zaměstnanci FN]:[Cizí]]) -> 1412 | L14: 1943
A15: 13.06. úterý | B15: 1131 | C15: 74 | D15: 4 | E15: 108 | F15: 11 | G15: 138 | H15: 556 | I15: 10 | J15: 40 | K15: =SUM(Tabulka_ExterníData_111[[#This Row],[Zaměstnanci FN]:[Cizí]]) -> 1466 | L15: 2022
A16: 14.06. středa | B16: 1128 | C16: 79 | D16: 3 | E16: 109 | F16: 15 | G16: 133 | H16: 563 | I16: 10 | J16: 35 | K16: =SUM(Tabulka_ExterníData_111[[#This Row],[Zaměstnanci FN]:[Cizí]]) -> 1467 | L16: 2030
A17: 15.06. čtvrtek | B17: 1151 | C17: 72 | D17: 5 | E17: 119 | F17: 9 | G17: 134 | H17: 539 | I17: 10 | J17: 41 | K17: =SUM(Tabulka_ExterníData_111[[#This Row],[Zaměstnanci FN]:[Cizí]]) -> 1490 | L17: 2029
A18: 16.06. pátek | B18: 1072 | C18: 56 | D18: 3 | E18: 109 | F18: 11 | G18: 113 | H18: 566 | I18: 10 | J18: 37 | K18: =SUM(Tabulka_ExterníData_111[[#This Row],[Zaměstnanci FN]:[Cizí]]) -> 1364 | L18: 1930
A19: 17.06. sobota | B19: 79 | G19: 7 | H19: 234 | K19: =SUM(Tabulka_ExterníData_111[[#This Row],[Zaměstnanci FN]:[Cizí]]) -> 86 | L19: 320
A20: 18.06. neděle | B20: 48 | G20: 7 | H20: 217 | K20: =SUM(Tabulka_ExterníData_111[[#This Row],[Zaměstnanci FN]:[Cizí]]) -> 55 | L20: 272
A21: 19.06. pondělí | B21: 1081 | C21: 51 | D21: 4 | E21: 98 | F21: 13 | G21: 136 | H21: 542 | I21: 10 | J21: 46 | K21: =SUM(Tabulka_ExterníData_111[[#This Row],[Zaměstnanci FN]:[Cizí]]) -> 1383 | L21: 1925
A22: 20.06. úterý | B22: 1125 | C22: 67 | D22: 4 | E22: 109 | F22: 11 | G22: 146 | H22: 571 | I22: 10 | J22: 42 | K22: =SUM(Tabulka_ExterníData_111[[#This Row],[Zaměstnanci FN]:[Cizí]]) -> 1462 | L22: 2033
A23: 21.06. středa | B23: 1111 | C23: 59 | D23: 5 | E23: 97 | F23: 11 | G23: 134 | H23: 574 | I23: 10 | J23: 40 | K23: =SUM(Tabulka_ExterníData_111[[#This Row],[Zaměstnanci FN]:[Cizí]]) -> 1417 | L23: 1991
A24: 22.06. čtvrtek | B24: 1059 | C24: 61 | D24: 5 | E24: 102 | F24: 9 | G24: 127 | H24: 529 | I24: 10 | J24: 38 | K24: =SUM(Tabulka_ExterníData_111[[#This Row],[Zaměstnanci FN]:[Cizí]]) -> 1363 | L24: 1892
A25: 23.06. pátek | B25: 1068 | C25: 42 | D25: 2 | E25: 118 | F25: 10 | G25: 113 | H25: 587 | I25: 10 | J25: 39 | K25: =SUM(Tabulka_ExterníData_111[[#This Row],[Zaměstnanci FN]:[Cizí]]) -> 1353 | L25: 1940
A26: 24.06. sobota | B26: 63 | G26: 10 | H26: 232 | K26: =SUM(Tabulka_ExterníData_111[[#This Row],[Zaměstnanci FN]:[Cizí]]) -> 73 | L26: 305
A27: 25.06. neděle | B27: 51 | G27: 8 | H27: 194 | K27: =SUM(Tabulka_ExterníData_111[[#This Row],[Zaměstnanci FN]:[Cizí]]) -> 59 | L27: 253
A28: 26.06. pondělí | B28: 1036 | C28: 36 | D28: 5 | E28: 100 | F28: 12 | G28: 134 | H28: 522 | I28: 10 | J28: 45 | K28: =SUM(Tabulka_ExterníData_111[[#This Row],[Zaměstnanci FN]:[Cizí]]) -> 1323 | L28: 1845
A29: 27.06. úterý | B29: 1138 | C29: 56 | D29: 5 | E29: 118 | F29: 11 | G29: 142 | H29: 532 | I29: 10 | J29: 42 | K29: =SUM(Tabulka_ExterníData_111[[#This Row],[Zaměstnanci FN]:[Cizí]]) -> 1470 | L29: 2002
A30: 28.06. středa | B30: 1050 | C30: 56 | D30: 5 | E30: 100 | F30: 11 | G30: 139 | H30: 517 | I30: 10 | J30: 42 | K30: =SUM(Tabulka_ExterníData_111[[#This Row],[Zaměstnanci FN]:[Cizí]]) -> 1361 | L30: 1878
A31: 29.06. čtvrtek | B31: 1063 | C31: 43 | D31: 3 | E31: 99 | F31: 9 | G31: 136 | H31: 533 | I31: 10 | J31: 40 | K31: =SUM(Tabulka_ExterníData_111[[#This Row],[Zaměstnanci FN]:[Cizí]]) -> 1353 | L31: 1886
A32: 30.06. pátek | B32: 967 | C32: 31 | D32: 1 | E32: 108 | F32: 6 | G32: 108 | H32: 501 | I32: 10 | J32: 40 | K32: =SUM(Tabulka_ExterníData_111[[#This Row],[Zaměstnanci FN]:[Cizí]]) -> 1221 | L32: 1722
B33: =SUBTOTAL(109,[Zaměstnanci FN]) -> 24686 | C33: =SUBTOTAL(109,C3:C32) -> 1577 | D33: 77 | E33: 2391 | F33: 247 | G33: 3056 | H33: 13744 | I33: 220 | J33: 925 | K33: =SUBTOTAL(109,[Jídelna celkem]) -> 32034 | L33: =SUBTOTAL(109,[Celkový počet obědů (bez školka a jesle)]) -> 45778

Sheet 07-2017
A1: Stavy jídel za období 1.7.2017 - 31.7.2017
A2: Datum | B2: Zaměstnanci FN | C2: Studenti | D2: Stážisté | E2: Důchodci | F2: Exbio | G2: Cizí | H2: Tablet | I2: Jesle | J2: Školka | K2: Jídelna celkem | L2: Celkový počet obědů (bez školka a jesle)
A3: 01.07. sobota | H3: 219 | K3: =SUM(Tabulka_ExterníData_13[[#This Row],[Zaměstnanci FN]:[Cizí]]) -> 0 | L3: =SUM(H3,K3) -> 219
A4: 02.07. neděle | H4: 199 | K4: =SUM(Tabulka_ExterníData_13[[#This Row],[Zaměstnanci FN]:[Cizí]]) -> 0 | L4: 199
A5: 03.07. pondělí | B5: 598 | C5: 3 | E5: 81 | F5: 9 | G5: 17 | H5: 450 | I5: 10 | J5: 31 | K5: =SUM(Tabulka_ExterníData_13[[#This Row],[Zaměstnanci FN]:[Cizí]]) -> 708 | L5: 1158
A6: 04.07. úterý | B6: 724 | C6: 4 | E6: 98 | F6: 10 | G6: 12 | H6: 532 | I6: 10 | J6: 31 | K6: =SUM(Tabulka_ExterníData_13[[#This Row],[Zaměstnanci FN]:[Cizí]]) -> 848 | L6: 1380
A7: 05.07. středa | B7: 72 | E7: 5 | G7: 2 | H7: 201 | K7: =SUM(Tabulka_ExterníData_13[[#This Row],[Zaměstnanci FN]:[Cizí]]) -> 79 | L7: 280
A8: 06.07. čtvrtek | B8: 63 | E8: 4 | G8: 2 | H8: 205 | K8: =SUM(Tabulka_ExterníData_13[[#This Row],[Zaměstnanci FN]:[Cizí]]) -> 69 | L8: 274
A9: 07.07. pátek | B9: 485 | C9: 1 | E9: 92 | G9: 5 | H9: 453 | I9: 8 | J9: 14 | K9: =SUM(Tabulka_ExterníData_13[[#This Row],[Zaměstnanci FN]:[Cizí]]) -> 583 | L9: 1036
A10: 08.07. sobota | B10: 58 | G10: 3 | H10: 217 | K10: =SUM(Tabulka_ExterníData_13[[#This Row],[Zaměstnanci FN]:[Cizí]]) -> 61 | L10: 278
A11: 09.07. neděle | B11: 49 | G11: 3 | H11: 210 | K11: =SUM(Tabulka_ExterníData_13[[#This Row],[Zaměstnanci FN]:[Cizí]]) -> 52 | L11: 262
A12: 10.07. pondělí | B12: 718 | E12: 93 | F12: 11 | G12: 13 | H12: 527 | I12: 10 | J12: 43 | K12: =SUM(Tabulka_ExterníData_13[[#This Row],[Zaměstnanci FN]:[Cizí]]) -> 835 | L12: 1362
A13: 11.07. úterý | B13: 772 | E13: 90 | F13: 9 | G13: 13 | H13: 535 | I13: 10 | J13: 43 | K13: =SUM(Tabulka_ExterníData_13[[#This Row],[Zaměstnanci FN]:[Cizí]]) -> 884 | L13: 1419
A14: 12.07. středa | B14: 754 | E14: 83 | F14: 9 | G14: 11 | H14: 564 | I14: 10 | J14: 38 | K14: =SUM(Tabulka_ExterníData_13[[#This Row],[Zaměstnanci FN]:[Cizí]]) -> 857 | L14: 1421
A15: 13.07. čtvrtek | B15: 790 | E15: 94 | F15: 10 | G15: 10 | H15: 567 | I15: 10 | K15: =SUM(Tabulka_ExterníData_13[[#This Row],[Zaměstnanci FN]:[Cizí]]) -> 904 | L15: 1471
A16: 14.07. pátek | B16: 735 | E16: 84 | F16: 8 | G16: 8 | H16: 533 | I16: 10 | J16: 41 | K16: =SUM(Tabulka_ExterníData_13[[#This Row],[Zaměstnanci FN]:[Cizí]]) -> 835 | L16: 1368
A17: 15.07. sobota | H17: 183 | K17: =SUM(Tabulka_ExterníData_13[[#This Row],[Zaměstnanci FN]:[Cizí]]) -> 0 | L17: 183
A18: 16.07. neděle | H18: 194 | K18: =SUM(Tabulka_ExterníData_13[[#This Row],[Zaměstnanci FN]:[Cizí]]) -> 0 | L18: 194
A19: 17.07. pondělí | B19: 705 | E19: 85 | F19: 10 | G19: 9 | H19: 537 | I19: 10 | J19: 42 | K19: =SUM(Tabulka_ExterníData_13[[#This Row],[Zaměstnanci FN]:[Cizí]]) -> 809 | L19: 1346
A20: 18.07. úterý | B20: 813 | E20: 95 | F20: 9 | G20: 13 | H20: 608 | I20: 10 | J20: 44 | K20: =SUM(Tabulka_ExterníData_13[[#This Row],[Zaměstnanci FN]:[Cizí]]) -> 930 | L20: 1538
A21: 19.07. středa | B21: 774 | E21: 78 | F21: 9 | G21: 10 | H21: 612 | I21: 10 | J21: 42 | K21: =SUM(Tabulka_ExterníData_13[[#This Row],[Zaměstnanci FN]:[Cizí]]) -> 871 | L21: 1483
A22: 20.07. čtvrtek | B22: 729 | E22: 77 | F22: 8 | G22: 9 | H22: 601 | I22: 10 | J22: 42 | K22: =SUM(Tabulka_ExterníData_13[[#This Row],[Zaměstnanci FN]:[Cizí]]) -> 823 | L22: 1424
A23: 21.07. pátek | B23: 675 | E23: 82 | F23: 8 | G23: 9 | H23: 581 | I23: 10 | J23: 42 | K23: =SUM(Tabulka_ExterníData_13[[#This Row],[Zaměstnanci FN]:[Cizí]]) -> 774 | L23: 1355
A24: 22.07. sobota | B24: 37 | G24: 3 | H24: 197 | K24: =SUM(Tabulka_ExterníData_13[[#This Row],[Zaměstnanci FN]:[Cizí]]) -> 40 | L24: 237
A25: 23.07. neděle | B25: 37 | G25: 4 | H25: 191 | K25: =SUM(Tabulka_ExterníData_13[[#This Row],[Zaměstnanci FN]:[Cizí]]) -> 41 | L25: 232
A26: 24.07. pondělí | B26: 677 | D26: 1 | E26: 85 | F26: 9 | G26: 9 | H26: 520 | I26: 10 | J26: 36 | K26: =SUM(Tabulka_ExterníData_13[[#This Row],[Zaměstnanci FN]:[Cizí]]) -> 781 | L26: 1301
A27: 25.07. úterý | B27: 760 | D27: 1 | E27: 90 | F27: 9 | G27: 12 | H27: 534 | I27: 10 | J27: 42 | K27: =SUM(Tabulka_ExterníData_13[[#This Row],[Zaměstnanci FN]:[Cizí]]) -> 872 | L27: 1406
A28: 26.07. středa | B28: 760 | D28: 1 | E28: 97 | F28: 11 | G28: 11 | H28: 580 | I28: 10 | J28: 35 | K28: =SUM(Tabulka_ExterníData_13[[#This Row],[Zaměstnanci FN]:[Cizí]]) -> 880 | L28: 1460
A29: 27.07. čtvrtek | B29: 756 | D29: 1 | E29: 81 | F29: 9 | G29: 10 | H29: 575 | I29: 10 | J29: 37 | K29: =SUM(Tabulka_ExterníData_13[[#This Row],[Zaměstnanci FN]:[Cizí]]) -> 857 | L29: 1432
A30: 28.07. pátek | B30: 755 | D30: 1 | E30: 96 | F30: 10 | G30: 9 | H30: 598 | I30: 10 | J30: 36 | K30: =SUM(Tabulka_ExterníData_13[[#This Row],[Zaměstnanci FN]:[Cizí]]) -> 871 | L30: 1469
A31: 29.07. sobota | B31: 67 | G31: 4 | H31: 196 | K31: =SUM(Tabulka_ExterníData_13[[#This Row],[Zaměstnanci FN]:[Cizí]]) -> 71 | L31: 267
A32: 30.07. neděle | B32: 45 | G32: 4 | H32: 207 | K32: =SUM(Tabulka_ExterníData_13[[#This Row],[Zaměstnanci FN]:[Cizí]]) -> 49 | L32: 256
A33: 31.07. pondělí | B33: 709 | E33: 81 | F33: 10 | G33: 10 | H33: 543 | I33: 10 | K33: =SUM(Tabulka_ExterníData_13[[#This Row],[Zaměstnanci FN]:[Cizí]]) -> 810 | L33: 1353
B34: =SUBTOTAL(109,[Zaměstnanci FN]) -> 14117 | C34: =SUBTOTAL(109,C3:C33) -> 8 | D34: 5 | E34: 1671 | F34: 168 | G34: 225 | H34: 12869 | I34: 188 | J34: 639 | K34: =SUBTOTAL(109,[Jídelna celkem]) -> 16194 | L34: =SUBTOTAL(109,[Celkový počet obědů (bez školka a jesle)]) -> 29063
A37: Vytvořeno dne: 11.8.2017

Sheet 08-2017
A1: Stavy jídel za období 1.8.2017 - 31.8.2017
A2: Datum | B2: Zaměstnanci FN | C2: Studenti | D2: Stážisté | E2: Důchodci | F2: Exbio | G2: Cizí | H2: Tablet | I2: Jesle | J2: Školka | K2: Jídelna celkem | L2: Celkový počet obědů (bez školka a jesle)
A3: 01.08. úterý | B3: 726 | E3: 76 | F3: 9 | G3: 12 | H3: 557 | I3: 10 | K3: =SUM(Tabulka_ExterníData_112[[#This Row],[Zaměstnanci FN]:[Cizí]]) -> 823 | L3: =SUM(H3,K3) -> 1380
A4: 02.08. středa | B4: 753 | E4: 75 | F4: 9 | G4: 10 | H4: 569 | I4: 10 | K4: =SUM(Tabulka_ExterníData_112[[#This Row],[Zaměstnanci FN]:[Cizí]]) -> 847 | L4: 1416
A5: 03.08. čtvrtek | B5: 742 | E5: 70 | F5: 9 | G5: 10 | H5: 580 | I5: 10 | K5: =SUM(Tabulka_ExterníData_112[[#This Row],[Zaměstnanci FN]:[Cizí]]) -> 831 | L5: 1411
A6: 04.08. pátek | B6: 742 | E6: 93 | F6: 12 | G6: 8 | H6: 610 | I6: 10 | K6: =SUM(Tabulka_ExterníData_112[[#This Row],[Zaměstnanci FN]:[Cizí]]) -> 855 | L6: 1465
A7: 05.08. sobota | B7: 62 | G7: 3 | H7: 199 | K7: =SUM(Tabulka_ExterníData_112[[#This Row],[Zaměstnanci FN]:[Cizí]]) -> 65 | L7: 264
A8: 06.08. neděle | B8: 53 | G8: 3 | H8: 199 | K8: =SUM(Tabulka_ExterníData_112[[#This Row],[Zaměstnanci FN]:[Cizí]]) -> 56 | L8: 255
A9: 07.08. pondělí | B9: 715 | E9: 82 | F9: 11 | G9: 12 | H9: 552 | I9: 10 | J9: 43 | K9: =SUM(Tabulka_ExterníData_112[[#This Row],[Zaměstnanci FN]:[Cizí]]) -> 820 | L9: 1372
A10: 08.08. úterý | B10: 758 | E10: 81 | F10: 10 | G10: 9 | H10: 579 | I10: 10 | J10: 37 | K10: =SUM(Tabulka_ExterníData_112[[#This Row],[Zaměstnanci FN]:[Cizí]]) -> 858 | L10: 1437
A11: 09.08. středa | B11: 745 | E11: 81 | F11: 10 | G11: 11 | H11: 618 | I11: 10 | J11: 35 | K11: =SUM(Tabulka_ExterníData_112[[#This Row],[Zaměstnanci FN]:[Cizí]]) -> 847 | L11: 1465
A12: 10.08. čtvrtek | B12: 792 | E12: 85 | F12: 8 | G12: 10 | H12: 609 | I12: 10 | J12: 38 | K12: =SUM(Tabulka_ExterníData_112[[#This Row],[Zaměstnanci FN]:[Cizí]]) -> 895 | L12: 1504
A13: 11.08. pátek | B13: 737 | E13: 85 | F13: 8 | G13: 7 | H13: 623 | I13: 10 | J13: 36 | K13: =SUM(Tabulka_ExterníData_112[[#This Row],[Zaměstnanci FN]:[Cizí]]) -> 837 | L13: 1460
A14: 12.08. sobota | B14: 58 | G14: 5 | H14: 222 | K14: =SUM(Tabulka_ExterníData_112[[#This Row],[Zaměstnanci FN]:[Cizí]]) -> 63 | L14: 285
A15: 13.08. neděle | B15: 50 | G15: 5 | H15: 202 | K15: =SUM(Tabulka_ExterníData_112[[#This Row],[Zaměstnanci FN]:[Cizí]]) -> 55 | L15: 257
A16: 14.08. pondělí | B16: 690 | E16: 95 | F16: 10 | G16: 5 | H16: 595 | I16: 10 | J16: 40 | K16: =SUM(Tabulka_ExterníData_112[[#This Row],[Zaměstnanci FN]:[Cizí]]) -> 800 | L16: 1395
A17: 15.08. úterý | B17: 725 | E17: 90 | F17: 10 | G17: 6 | H17: 655 | I17: 10 | J17: 38 | K17: =SUM(Tabulka_ExterníData_112[[#This Row],[Zaměstnanci FN]:[Cizí]]) -> 831 | L17: 1486
A18: 16.08. středa | B18: 757 | E18: 85 | F18: 10 | G18: 8 | H18: 674 | I18: 10 | J18: 37 | K18: =SUM(Tabulka_ExterníData_112[[#This Row],[Zaměstnanci FN]:[Cizí]]) -> 860 | L18: 1534
A19: 17.08. čtvrtek | B19: 735 | E19: 90 | F19: 9 | G19: 6 | H19: 653 | I19: 10 | J19: 35 | K19: =SUM(Tabulka_ExterníData_112[[#This Row],[Zaměstnanci FN]:[Cizí]]) -> 840 | L19: 1493
A20: 18.08. pátek | B20: 690 | E20: 84 | F20: 8 | G20: 5 | H20: 635 | I20: 10 | J20: 32 | K20: =SUM(Tabulka_ExterníData_112[[#This Row],[Zaměstnanci FN]:[Cizí]]) -> 787 | L20: 1422
A21: 19.08. sobota | B21: 54 | G21: 6 | H21: 200 | K21: =SUM(Tabulka_ExterníData_112[[#This Row],[Zaměstnanci FN]:[Cizí]]) -> 60 | L21: 260
A22: 20.08. neděle | B22: 41 | G22: 4 | H22: 214 | K22: =SUM(Tabulka_ExterníData_112[[#This Row],[Zaměstnanci FN]:[Cizí]]) -> 45 | L22: 259
A23: 21.08. pondělí | B23: 704 | D23: 1 | E23: 85 | F23: 11 | G23: 8 | H23: 596 | J23: 30 | K23: =SUM(Tabulka_ExterníData_112[[#This Row],[Zaměstnanci FN]:[Cizí]]) -> 809 | L23: 1405
A24: 22.08. úterý | B24: 832 | E24: 82 | F24: 10 | G24: 14 | H24: 627 | J24: 30 | K24: =SUM(Tabulka_ExterníData_112[[#This Row],[Zaměstnanci FN]:[Cizí]]) -> 938 | L24: 1565
A25: 23.08. středa | B25: 760 | E25: 79 | F25: 10 | G25: 11 | H25: 615 | J25: 30 | K25: =SUM(Tabulka_ExterníData_112[[#This Row],[Zaměstnanci FN]:[Cizí]]) -> 860 | L25: 1475
A26: 24.08. čtvrtek | B26: 845 | E26: 95 | F26: 8 | G26: 8 | H26: 677 | J26: 30 | K26: =SUM(Tabulka_ExterníData_112[[#This Row],[Zaměstnanci FN]:[Cizí]]) -> 956 | L26: 1633
A27: 25.08. pátek | B27: 741 | E27: 91 | F27: 8 | G27: 10 | H27: 615 | J27: 30 | K27: =SUM(Tabulka_ExterníData_112[[#This Row],[Zaměstnanci FN]:[Cizí]]) -> 850 | L27: 1465
A28: 26.08. sobota | B28: 62 | G28: 5 | H28: 233 | K28: =SUM(Tabulka_ExterníData_112[[#This Row],[Zaměstnanci FN]:[Cizí]]) -> 67 | L28: 300
A29: 27.08. neděle | B29: 57 | G29: 4 | H29: 209 | K29: =SUM(Tabulka_ExterníData_112[[#This Row],[Zaměstnanci FN]:[Cizí]]) -> 61 | L29: 270
A30: 28.08. pondělí | B30: 724 | E30: 76 | F30: 8 | G30: 14 | H30: 577 | J30: 30 | K30: =SUM(Tabulka_ExterníData_112[[#This Row],[Zaměstnanci FN]:[Cizí]]) -> 822 | L30: 1399
A31: 29.08. úterý | B31: 851 | D31: 1 | E31: 86 | F31: 10 | G31: 13 | H31: 656 | J31: 36 | K31: =SUM(Tabulka_ExterníData_112[[#This Row],[Zaměstnanci FN]:[Cizí]]) -> 961 | L31: 1617
A32: 30.08. středa | B32: 796 | D32: 1 | E32: 83 | F32: 10 | G32: 11 | H32: 637 | J32: 38 | K32: =SUM(Tabulka_ExterníData_112[[#This Row],[Zaměstnanci FN]:[Cizí]]) -> 901 | L32: 1538
A33: 31.08. čtvrtek | B33: 826 | E33: 87 | F33: 6 | G33: 14 | H33: 667 | J33: 38 | K33: =SUM(Tabulka_ExterníData_112[[#This Row],[Zaměstnanci FN]:[Cizí]]) -> 933 | L33: 1600
B34: =SUBTOTAL(109,[Zaměstnanci FN]) -> 17823 | C34: =SUBTOTAL(109,C3:C33) -> 0 | D34: 3 | E34: 1936 | F34: 214 | G34: 257 | H34: 15854 | I34: 140 | J34: 663 | K34: =SUBTOTAL(109,[Jídelna celkem]) -> 20233 | L34: =SUBTOTAL(109,[Celkový počet obědů (bez školka a jesle)]) -> 36087
A37: Vytvořeno dne: 27.11.2017

Sheet 09-2017
A1: Stavy jídel za období 1.9.2017 - 30.9.2017
A2: Datum | B2: Zaměstnanci FN | C2: Studenti | D2: Stážisté | E2: Důchodci | F2: Exbio | G2: Cizí | H2: Tablet | I2: Jesle | J2: Školka | K2: Jídelna celkem | L2: Celkový počet obědů (bez školka a jesle)
A3: 01.09. pátek | B3: 756 | E3: 74 | F3: 8 | G3: 8 | H3: 640 | J3: 42 | K3: =SUM(Tabulka_ExterníData_19[[#This Row],[Zaměstnanci FN]:[Cizí]]) -> 846 | L3: =SUM(H3,K3) -> 1486
A4: 02.09. sobota | B4: 60 | G4: 3 | H4: 220 | K4: =SUM(Tabulka_ExterníData_19[[#This Row],[Zaměstnanci FN]:[Cizí]]) -> 63 | L4: 283
A5: 03.09. neděle | B5: 48 | G5: 3 | H5: 222 | K5: =SUM(Tabulka_ExterníData_19[[#This Row],[Zaměstnanci FN]:[Cizí]]) -> 51 | L5: 273
A6: 04.09. pondělí | B6: 812 | E6: 84 | F6: 12 | G6: 13 | H6: 648 | I6: 12 | J6: 40 | K6: =SUM(Tabulka_ExterníData_19[[#This Row],[Zaměstnanci FN]:[Cizí]]) -> 921 | L6: 1569
A7: 05.09. úterý | B7: 934 | E7: 88 | F7: 9 | G7: 15 | H7: 722 | I7: 12 | J7: 38 | K7: =SUM(Tabulka_ExterníData_19[[#This Row],[Zaměstnanci FN]:[Cizí]]) -> 1046 | L7: 1768
A8: 06.09. středa | B8: 894 | E8: 90 | F8: 13 | G8: 47 | H8: 725 | I8: 12 | J8: 38 | K8: =SUM(Tabulka_ExterníData_19[[#This Row],[Zaměstnanci FN]:[Cizí]]) -> 1044 | L8: 1769
A9: 07.09. čtvrtek | B9: 937 | E9: 86 | F9: 12 | G9: 12 | H9: 768 | I9: 12 | J9: 38 | K9: =SUM(Tabulka_ExterníData_19[[#This Row],[Zaměstnanci FN]:[Cizí]]) -> 1047 | L9: 1815
A10: 08.09. pátek | B10: 849 | E10: 94 | F10: 9 | G10: 12 | H10: 718 | I10: 12 | J10: 35 | K10: =SUM(Tabulka_ExterníData_19[[#This Row],[Zaměstnanci FN]:[Cizí]]) -> 964 | L10: 1682
A11: 09.09. sobota | B11: 65 | G11: 5 | H11: 244 | K11: =SUM(Tabulka_ExterníData_19[[#This Row],[Zaměstnanci FN]:[Cizí]]) -> 70 | L11: 314
A12: 10.09. neděle | B12: 55 | G12: 4 | H12: 220 | K12: =SUM(Tabulka_ExterníData_19[[#This Row],[Zaměstnanci FN]:[Cizí]]) -> 59 | L12: 279
A13: 11.09. pondělí | B13: 910 | E13: 81 | F13: 14 | G13: 15 | H13: 653 | I13: 12 | J13: 38 | K13: =SUM(Tabulka_ExterníData_19[[#This Row],[Zaměstnanci FN]:[Cizí]]) -> 1020 | L13: 1673
A14: 12.09. úterý | B14: 999 | D14: 1 | E14: 112 | F14: 12 | G14: 15 | H14: 784 | I14: 12 | J14: 38 | K14: =SUM(Tabulka_ExterníData_19[[#This Row],[Zaměstnanci FN]:[Cizí]]) -> 1139 | L14: 1923
A15: 13.09. středa | B15: 1001 | E15: 98 | F15: 14 | G15: 16 | H15: 757 | I15: 12 | J15: 38 | K15: =SUM(Tabulka_ExterníData_19[[#This Row],[Zaměstnanci FN]:[Cizí]]) -> 1129 | L15: 1886
A16: 14.09. čtvrtek | B16: 948 | E16: 99 | F16: 12 | G16: 10 | H16: 757 | I16: 12 | J16: 40 | K16: =SUM(Tabulka_ExterníData_19[[#This Row],[Zaměstnanci FN]:[Cizí]]) -> 1069 | L16: 1826
A17: 15.09. pátek | B17: 844 | E17: 82 | F17: 9 | G17: 26 | H17: 741 | I17: 12 | J17: 37 | K17: =SUM(Tabulka_ExterníData_19[[#This Row],[Zaměstnanci FN]:[Cizí]]) -> 961 | L17: 1702
A18: 16.09. sobota | B18: 58 | G18: 5 | H18: 232 | K18: =SUM(Tabulka_ExterníData_19[[#This Row],[Zaměstnanci FN]:[Cizí]]) -> 63 | L18: 295
A19: 17.09. neděle | B19: 52 | G19: 4 | H19: 237 | K19: =SUM(Tabulka_ExterníData_19[[#This Row],[Zaměstnanci FN]:[Cizí]]) -> 56 | L19: 293
A20: 18.09. pondělí | B20: 857 | E20: 92 | F20: 12 | G20: 12 | H20: 671 | I20: 12 | J20: 42 | K20: =SUM(Tabulka_ExterníData_19[[#This Row],[Zaměstnanci FN]:[Cizí]]) -> 973 | L20: 1644
A21: 19.09. úterý | B21: 942 | E21: 101 | F21: 10 | G21: 14 | H21: 721 | I21: 12 | J21: 49 | K21: =SUM(Tabulka_ExterníData_19[[#This Row],[Zaměstnanci FN]:[Cizí]]) -> 1067 | L21: 1788
A22: 20.09. středa | B22: 894 | E22: 91 | F22: 11 | G22: 12 | H22: 741 | I22: 12 | J22: 40 | K22: =SUM(Tabulka_ExterníData_19[[#This Row],[Zaměstnanci FN]:[Cizí]]) -> 1008 | L22: 1749
A23: 21.09. čtvrtek | B23: 972 | E23: 100 | F23: 12 | G23: 14 | H23: 745 | I23: 12 | J23: 39 | K23: =SUM(Tabulka_ExterníData_19[[#This Row],[Zaměstnanci FN]:[Cizí]]) -> 1098 | L23: 1843
A24: 22.09. pátek | B24: 927 | E24: 99 | F24: 12 | G24: 11 | H24: 745 | I24: 12 | J24: 40 | K24: =SUM(Tabulka_ExterníData_19[[#This Row],[Zaměstnanci FN]:[Cizí]]) -> 1049 | L24: 1794
A25: 23.09. sobota | B25: 68 | G25: 24 | H25: 222 | K25: =SUM(Tabulka_ExterníData_19[[#This Row],[Zaměstnanci FN]:[Cizí]]) -> 92 | L25: 314
A26: 24.09. neděle | B26: 58 | G26: 4 | H26: 224 | K26: =SUM(Tabulka_ExterníData_19[[#This Row],[Zaměstnanci FN]:[Cizí]]) -> 62 | L26: 286
A27: 25.09. pondělí | B27: 916 | E27: 98 | F27: 14 | G27: 11 | H27: 657 | I27: 12 | J27: 41 | K27: =SUM(Tabulka_ExterníData_19[[#This Row],[Zaměstnanci FN]:[Cizí]]) -> 1039 | L27: 1696
A28: 26.09. úterý | B28: 941 | D28: 1 | E28: 88 | F28: 10 | G28: 13 | H28: 729 | I28: 12 | J28: 38 | K28: =SUM(Tabulka_ExterníData_19[[#This Row],[Zaměstnanci FN]:[Cizí]]) -> 1053 | L28: 1782
A29: 27.09. středa | B29: 954 | E29: 97 | F29: 10 | G29: 14 | H29: 760 | I29: 12 | J29: 40 | K29: =SUM(Tabulka_ExterníData_19[[#This Row],[Zaměstnanci FN]:[Cizí]]) -> 1075 | L29: 1835
A30: 28.09. čtvrtek | B30: 121 | E30: 5 | G30: 5 | H30: 248 | K30: =SUM(Tabulka_ExterníData_19[[#This Row],[Zaměstnanci FN]:[Cizí]]) -> 131 | L30: 379
A31: 29.09. pátek | B31: 617 | C31: 2 | E31: 78 | F31: 6 | G31: 6 | H31: 611 | I31: 12 | J31: 22 | K31: =SUM(Tabulka_ExterníData_19[[#This Row],[Zaměstnanci FN]:[Cizí]]) -> 709 | L31: 1320
A32: 30.09. sobota | B32: 64 | G32: 5 | H32: 228 | K32: =SUM(Tabulka_ExterníData_19[[#This Row],[Zaměstnanci FN]:[Cizí]]) -> 69 | L32: 297
B33: =SUBTOTAL(109,[Zaměstnanci FN]) -> 18553 | C33: =SUBTOTAL(109,C3:C32) -> 2 | D33: 2 | E33: 1837 | F33: 221 | G33: 358 | H33: 16590 | I33: 228 | J33: 773 | K33: =SUBTOTAL(109,[Jídelna celkem]) -> 20973 | L33: =SUBTOTAL(109,[Celkový počet obědů (bez školka a jesle)]) -> 37563
A37: Vytvořeno dne: 27.11.2017

Sheet 10-2017
A1: Stavy jídel za období 1.10.2017 - 31.10.2017
A2: Datum | B2: Zaměstnanci FN | C2: Studenti | D2: Stážisté | E2: Důchodci | F2: Exbio | G2: Cizí | H2: Tablet | I2: Jesle | J2: Školka | K2: Jídelna celkem | L2: Celkový počet obědů (bez školka a jesle)
A3: 01.10. neděle | B3: 52 | G3: 4 | H3: 216 | K3: =SUM(Tabulka_ExterníData_14[[#This Row],[Zaměstnanci FN]:[Cizí]]) -> 56 | L3: =SUM(H3,K3) -> 272
A4: 02.10. pondělí | B4: 1163 | C4: 117 | E4: 99 | F4: 13 | G4: 78 | H4: 664 | I4: 12 | J4: 39 | K4: =SUM(Tabulka_ExterníData_14[[#This Row],[Zaměstnanci FN]:[Cizí]]) -> 1470 | L4: 2134
A5: 03.10. úterý | B5: 1175 | C5: 338 | D5: 4 | E5: 115 | F5: 12 | G5: 111 | H5: 651 | I5: 12 | J5: 37 | K5: =SUM(Tabulka_ExterníData_14[[#This Row],[Zaměstnanci FN]:[Cizí]]) -> 1755 | L5: 2406
A6: 04.10. středa | B6: 1206 | C6: 388 | D6: 5 | E6: 103 | F6: 13 | G6: 113 | H6: 690 | I6: 12 | J6: 37 | K6: =SUM(Tabulka_ExterníData_14[[#This Row],[Zaměstnanci FN]:[Cizí]]) -> 1828 | L6: 2518
A7: 05.10. čtvrtek | B7: 1187 | C7: 342 | D7: 8 | E7: 112 | F7: 12 | G7: 105 | H7: 648 | I7: 12 | J7: 37 | K7: =SUM(Tabulka_ExterníData_14[[#This Row],[Zaměstnanci FN]:[Cizí]]) -> 1766 | L7: 2414
A8: 06.10. pátek | B8: 1139 | C8: 258 | D8: 7 | E8: 113 | F8: 11 | G8: 109 | H8: 689 | I8: 12 | J8: 37 | K8: =SUM(Tabulka_ExterníData_14[[#This Row],[Zaměstnanci FN]:[Cizí]]) -> 1637 | L8: 2326
A9: 07.10. sobota | B9: 71 | G9: 3 | H9: 226 | K9: =SUM(Tabulka_ExterníData_14[[#This Row],[Zaměstnanci FN]:[Cizí]]) -> 74 | L9: 300
A10: 08.10. neděle | B10: 60 | G10: 3 | H10: 237 | K10: =SUM(Tabulka_ExterníData_14[[#This Row],[Zaměstnanci FN]:[Cizí]]) -> 63 | L10: 300
A11: 09.10. pondělí | B11: 1134 | C11: 344 | D11: 4 | E11: 111 | F11: 13 | G11: 127 | H11: 635 | I11: 12 | J11: 42 | K11: =SUM(Tabulka_ExterníData_14[[#This Row],[Zaměstnanci FN]:[Cizí]]) -> 1733 | L11: 2368
A12: 10.10. úterý | B12: 1215 | C12: 482 | D12: 6 | E12: 112 | F12: 14 | G12: 132 | H12: 708 | I12: 12 | J12: 38 | K12: =SUM(Tabulka_ExterníData_14[[#This Row],[Zaměstnanci FN]:[Cizí]]) -> 1961 | L12: 2669
A13: 11.10. středa | B13: 1227 | C13: 460 | D13: 7 | E13: 126 | F13: 12 | G13: 126 | H13: 658 | I13: 12 | J13: 35 | K13: =SUM(Tabulka_ExterníData_14[[#This Row],[Zaměstnanci FN]:[Cizí]]) -> 1958 | L13: 2616
A14: 12.10. čtvrtek | B14: 1200 | C14: 420 | D14: 8 | E14: 119 | F14: 8 | G14: 125 | H14: 691 | I14: 12 | J14: 38 | K14: =SUM(Tabulka_ExterníData_14[[#This Row],[Zaměstnanci FN]:[Cizí]]) -> 1880 | L14: 2571
A15: 13.10. pátek | B15: 1101 | C15: 278 | D15: 6 | E15: 117 | F15: 11 | G15: 98 | H15: 648 | I15: 12 | J15: 38 | K15: =SUM(Tabulka_ExterníData_14[[#This Row],[Zaměstnanci FN]:[Cizí]]) -> 1611 | L15: 2259
A16: 14.10. sobota | B16: 56 | G16: 7 | H16: 235 | K16: =SUM(Tabulka_ExterníData_14[[#This Row],[Zaměstnanci FN]:[Cizí]]) -> 63 | L16: 298
A17: 15.10. neděle | B17: 50 | G17: 8 | H17: 228 | K17: =SUM(Tabulka_ExterníData_14[[#This Row],[Zaměstnanci FN]:[Cizí]]) -> 58 | L17: 286
A18: 16.10. pondělí | B18: 1158 | C18: 373 | D18: 13 | E18: 106 | F18: 11 | G18: 122 | H18: 635 | I18: 12 | J18: 41 | K18: =SUM(Tabulka_ExterníData_14[[#This Row],[Zaměstnanci FN]:[Cizí]]) -> 1783 | L18: 2418
A19: 17.10. úterý | B19: 1178 | C19: 485 | D19: 11 | E19: 117 | F19: 9 | G19: 127 | H19: 634 | I19: 12 | J19: 40 | K19: =SUM(Tabulka_ExterníData_14[[#This Row],[Zaměstnanci FN]:[Cizí]]) -> 1927 | L19: 2561
A20: 18.10. středa | B20: 1187 | C20: 472 | D20: 10 | E20: 103 | F20: 12 | G20: 127 | H20: 667 | I20: 12 | J20: 40 | K20: =SUM(Tabulka_ExterníData_14[[#This Row],[Zaměstnanci FN]:[Cizí]]) -> 1911 | L20: 2578
A21: 19.10. čtvrtek | B21: 1180 | C21: 433 | D21: 12 | E21: 121 | F21: 9 | G21: 126 | H21: 664 | I21: 12 | J21: 44 | K21: =SUM(Tabulka_ExterníData_14[[#This Row],[Zaměstnanci FN]:[Cizí]]) -> 1881 | L21: 2545
A22: 20.10. pátek | B22: 1112 | C22: 265 | D22: 8 | E22: 128 | F22: 11 | G22: 106 | H22: 630 | I22: 12 | J22: 43 | K22: =SUM(Tabulka_ExterníData_14[[#This Row],[Zaměstnanci FN]:[Cizí]]) -> 1630 | L22: 2260
A23: 21.10. sobota | B23: 72 | G23: 5 | H23: 235 | K23: =SUM(Tabulka_ExterníData_14[[#This Row],[Zaměstnanci FN]:[Cizí]]) -> 77 | L23: 312
A24: 22.10. neděle | B24: 65 | G24: 7 | H24: 236 | K24: =SUM(Tabulka_ExterníData_14[[#This Row],[Zaměstnanci FN]:[Cizí]]) -> 72 | L24: 308
A25: 23.10. pondělí | B25: 1134 | C25: 364 | D25: 10 | E25: 103 | F25: 11 | G25: 120 | H25: 603 | I25: 12 | J25: 41 | K25: =SUM(Tabulka_ExterníData_14[[#This Row],[Zaměstnanci FN]:[Cizí]]) -> 1742 | L25: 2345
A26: 24.10. úterý | B26: 1242 | C26: 473 | D26: 12 | E26: 129 | F26: 11 | G26: 129 | H26: 682 | I26: 12 | J26: 38 | K26: =SUM(Tabulka_ExterníData_14[[#This Row],[Zaměstnanci FN]:[Cizí]]) -> 1996 | L26: 2678
A27: 25.10. středa | B27: 1244 | C27: 487 | D27: 10 | E27: 115 | F27: 12 | G27: 116 | H27: 689 | I27: 12 | J27: 37 | K27: =SUM(Tabulka_ExterníData_14[[#This Row],[Zaměstnanci FN]:[Cizí]]) -> 1984 | L27: 2673
A28: 26.10. čtvrtek | B28: 1083 | C28: 405 | D28: 11 | E28: 103 | F28: 8 | G28: 125 | H28: 643 | I28: 12 | J28: 34 | K28: =SUM(Tabulka_ExterníData_14[[#This Row],[Zaměstnanci FN]:[Cizí]]) -> 1735 | L28: 2378
A29: 27.10. pátek | B29: 1027 | C29: 229 | D29: 11 | E29: 109 | F29: 10 | G29: 94 | H29: 612 | I29: 12 | J29: 31 | K29: =SUM(Tabulka_ExterníData_14[[#This Row],[Zaměstnanci FN]:[Cizí]]) -> 1480 | L29: 2092
A30: 28.10. sobota | B30: 73 | G30: 5 | H30: 251 | K30: =SUM(Tabulka_ExterníData_14[[#This Row],[Zaměstnanci FN]:[Cizí]]) -> 78 | L30: 329
A31: 29.10. neděle | B31: 66 | G31: 6 | H31: 253 | K31: =SUM(Tabulka_ExterníData_14[[#This Row],[Zaměstnanci FN]:[Cizí]]) -> 72 | L31: 325
A32: 30.10. pondělí | B32: 1174 | C32: 341 | D32: 6 | E32: 110 | F32: 10 | G32: 125 | H32: 626 | I32: 12 | J32: 40 | K32: =SUM(Tabulka_ExterníData_14[[#This Row],[Zaměstnanci FN]:[Cizí]]) -> 1766 | L32: 2392
A33: 31.10. úterý | B33: 1226 | C33: 487 | D33: 14 | E33: 112 | F33: 10 | G33: 129 | H33: 665 | I33: 12 | J33: 36 | K33: =SUM(Tabulka_ExterníData_14[[#This Row],[Zaměstnanci FN]:[Cizí]]) -> 1978 | L33: 2643
B34: =SUBTOTAL(109,[Zaměstnanci FN]) -> 26257 | C34: =SUBTOTAL(109,C3:C33) -> 8241 | D34: 183 | E34: 2483 | F34: 243 | G34: 2618 | H34: 16549 | I34: 264 | J34: 843 | K34: =SUBTOTAL(109,[Jídelna celkem]) -> 40025 | L34: =SUBTOTAL(109,[Celkový počet obědů (bez školka a jesle)]) -> 56574
A37: Vytvořeno dne: 27.11.2017

Sheet 11-2017
A1: Stavy jídel za období 1.11.2017 - 30.11.2017
A2: Datum | B2: Zaměstnanci FN | C2: Studenti | D2: Stážisté | E2: Důchodci | F2: Exbio | G2: Cizí | H2: Tablet | I2: Jesle | J2: Školka | K2: Jídelna celkem | L2: Celkový počet obědů (bez školka a jesle)
A3: 01.11. středa | B3: 1241 | C3: 459 | D3: 16 | E3: 117 | F3: 10 | G3: 125 | H3: 663 | I3: 12 | J3: 40 | K3: =SUM(Tabulka_ExterníData_114[[#This Row],[Zaměstnanci FN]:[Cizí]]) -> 1968 | L3: =SUM(H3,K3) -> 2631
A4: 02.11. čtvrtek | B4: 1221 | C4: 439 | D4: 13 | E4: 116 | F4: 10 | G4: 123 | H4: 676 | I4: 12 | J4: 32 | K4: =SUM(Tabulka_ExterníData_114[[#This Row],[Zaměstnanci FN]:[Cizí]]) -> 1922 | L4: 2598
A5: 03.11. pátek | B5: 1199 | C5: 240 | D5: 13 | E5: 135 | F5: 11 | G5: 107 | H5: 700 | I5: 12 | J5: 35 | K5: =SUM(Tabulka_ExterníData_114[[#This Row],[Zaměstnanci FN]:[Cizí]]) -> 1705 | L5: 2405
A6: 04.11. sobota | B6: 70 | G6: 5 | H6: 257 | K6: =SUM(Tabulka_ExterníData_114[[#This Row],[Zaměstnanci FN]:[Cizí]]) -> 75 | L6: 332
A7: 05.11. neděle | B7: 58 | G7: 8 | H7: 219 | K7: =SUM(Tabulka_ExterníData_114[[#This Row],[Zaměstnanci FN]:[Cizí]]) -> 66 | L7: 285
A8: 06.11. pondělí | B8: 1181 | C8: 372 | D8: 13 | E8: 103 | F8: 12 | G8: 124 | H8: 650 | I8: 12 | J8: 40 | K8: =SUM(Tabulka_ExterníData_114[[#This Row],[Zaměstnanci FN]:[Cizí]]) -> 1805 | L8: 2455
A9: 07.11. úterý | B9: 1217 | C9: 478 | D9: 18 | E9: 130 | F9: 9 | G9: 146 | H9: 694 | I9: 12 | J9: 40 | K9: =SUM(Tabulka_ExterníData_114[[#This Row],[Zaměstnanci FN]:[Cizí]]) -> 1998 | L9: 2692
A10: 08.11. středa | B10: 1216 | C10: 490 | D10: 13 | E10: 122 | F10: 11 | G10: 121 | H10: 705 | I10: 12 | J10: 38 | K10: =SUM(Tabulka_ExterníData_114[[#This Row],[Zaměstnanci FN]:[Cizí]]) -> 1973 | L10: 2678
A11: 09.11. čtvrtek | B11: 1197 | C11: 437 | D11: 18 | E11: 124 | F11: 11 | G11: 131 | H11: 695 | I11: 12 | J11: 40 | K11: =SUM(Tabulka_ExterníData_114[[#This Row],[Zaměstnanci FN]:[Cizí]]) -> 1918 | L11: 2613
A12: 10.11. pátek | B12: 1105 | C12: 218 | D12: 14 | E12: 110 | F12: 7 | G12: 104 | H12: 663 | I12: 12 | J12: 37 | K12: =SUM(Tabulka_ExterníData_114[[#This Row],[Zaměstnanci FN]:[Cizí]]) -> 1558 | L12: 2221
A13: 11.11. sobota | B13: 63 | G13: 5 | H13: 243 | K13: =SUM(Tabulka_ExterníData_114[[#This Row],[Zaměstnanci FN]:[Cizí]]) -> 68 | L13: 311
A14: 12.11. neděle | B14: 58 | G14: 5 | H14: 226 | K14: =SUM(Tabulka_ExterníData_114[[#This Row],[Zaměstnanci FN]:[Cizí]]) -> 63 | L14: 289
A15: 13.11. pondělí | B15: 1190 | C15: 355 | D15: 15 | E15: 124 | F15: 15 | G15: 129 | H15: 651 | I15: 12 | J15: 39 | K15: =SUM(Tabulka_ExterníData_114[[#This Row],[Zaměstnanci FN]:[Cizí]]) -> 1828 | L15: 2479
A16: 14.11. úterý | B16: 1204 | C16: 444 | D16: 17 | E16: 119 | F16: 10 | G16: 122 | H16: 646 | I16: 12 | J16: 42 | K16: =SUM(Tabulka_ExterníData_114[[#This Row],[Zaměstnanci FN]:[Cizí]]) -> 1916 | L16: 2562
A17: 15.11. středa | B17: 1279 | C17: 453 | D17: 14 | E17: 141 | F17: 12 | G17: 131 | H17: 731 | I17: 12 | J17: 38 | K17: =SUM(Tabulka_ExterníData_114[[#This Row],[Zaměstnanci FN]:[Cizí]]) -> 2030 | L17: 2761
A18: 16.11. čtvrtek | B18: 1166 | C18: 338 | D18: 15 | E18: 128 | F18: 9 | G18: 115 | H18: 652 | I18: 12 | J18: 40 | K18: =SUM(Tabulka_ExterníData_114[[#This Row],[Zaměstnanci FN]:[Cizí]]) -> 1771 | L18: 2423
A19: 17.11. pátek | B19: 82 | E19: 6 | G19: 9 | H19: 242 | K19: =SUM(Tabulka_ExterníData_114[[#This Row],[Zaměstnanci FN]:[Cizí]]) -> 97 | L19: 339
A20: 18.11. sobota | B20: 64 | G20: 5 | H20: 225 | K20: =SUM(Tabulka_ExterníData_114[[#This Row],[Zaměstnanci FN]:[Cizí]]) -> 69 | L20: 294
A21: 19.11. neděle | B21: 51 | G21: 6 | H21: 225 | K21: =SUM(Tabulka_ExterníData_114[[#This Row],[Zaměstnanci FN]:[Cizí]]) -> 57 | L21: 282
A22: 20.11. pondělí | B22: 1104 | C22: 358 | D22: 15 | E22: 118 | F22: 10 | G22: 123 | H22: 614 | I22: 12 | J22: 42 | K22: =SUM(Tabulka_ExterníData_114[[#This Row],[Zaměstnanci FN]:[Cizí]]) -> 1728 | L22: 2342
A23: 21.11. úterý | B23: 1190 | C23: 479 | D23: 14 | E23: 113 | F23: 10 | G23: 127 | H23: 661 | I23: 12 | J23: 35 | K23: =SUM(Tabulka_ExterníData_114[[#This Row],[Zaměstnanci FN]:[Cizí]]) -> 1933 | L23: 2594
A24: 22.11. středa | B24: 1258 | C24: 497 | D24: 15 | E24: 126 | F24: 13 | G24: 116 | H24: 705 | I24: 12 | J24: 40 | K24: =SUM(Tabulka_ExterníData_114[[#This Row],[Zaměstnanci FN]:[Cizí]]) -> 2025 | L24: 2730
A25: 23.11. čtvrtek | B25: 1185 | C25: 405 | D25: 13 | E25: 122 | F25: 8 | G25: 116 | H25: 670 | I25: 12 | J25: 39 | K25: =SUM(Tabulka_ExterníData_114[[#This Row],[Zaměstnanci FN]:[Cizí]]) -> 1849 | L25: 2519
A26: 24.11. pátek | B26: 1134 | C26: 287 | D26: 9 | E26: 125 | F26: 11 | G26: 106 | H26: 661 | I26: 12 | J26: 38 | K26: =SUM(Tabulka_ExterníData_114[[#This Row],[Zaměstnanci FN]:[Cizí]]) -> 1672 | L26: 2333
A27: 25.11. sobota | B27: 61 | G27: 3 | H27: 248 | K27: =SUM(Tabulka_ExterníData_114[[#This Row],[Zaměstnanci FN]:[Cizí]]) -> 64 | L27: 312
A28: 26.11. neděle | B28: 48 | G28: 5 | H28: 233 | K28: =SUM(Tabulka_ExterníData_114[[#This Row],[Zaměstnanci FN]:[Cizí]]) -> 53 | L28: 286
A29: 27.11. pondělí | B29: 1151 | C29: 387 | D29: 12 | E29: 125 | F29: 13 | G29: 113 | H29: 612 | I29: 12 | J29: 44 | K29: =SUM(Tabulka_ExterníData_114[[#This Row],[Zaměstnanci FN]:[Cizí]]) -> 1801 | L29: 2413
A30: 28.11. úterý | B30: 1193 | C30: 543 | D30: 12 | E30: 119 | F30: 11 | G30: 106 | H30: 657 | I30: 12 | J30: 42 | K30: =SUM(Tabulka_ExterníData_114[[#This Row],[Zaměstnanci FN]:[Cizí]]) -> 1984 | L30: 2641
A31: 29.11. středa | B31: 1264 | C31: 520 | D31: 9 | E31: 140 | F31: 12 | G31: 92 | H31: 666 | I31: 12 | J31: 37 | K31: =SUM(Tabulka_ExterníData_114[[#This Row],[Zaměstnanci FN]:[Cizí]]) -> 2037 | L31: 2703
A32: 30.11. čtvrtek | B32: 1210 | C32: 455 | D32: 9 | E32: 123 | F32: 9 | G32: 90 | H32: 656 | I32: 12 | J32: 42 | K32: =SUM(Tabulka_ExterníData_114[[#This Row],[Zaměstnanci FN]:[Cizí]]) -> 1896 | L32: 2552
B33: =SUBTOTAL(109,[Zaměstnanci FN]) -> 25660 | C33: =SUBTOTAL(109,C3:C32) -> 8654 | D33: 287 | E33: 2586 | F33: 224 | G33: 2518 | H33: 16146 | I33: 252 | J33: 820 | K33: =SUBTOTAL(109,[Jídelna celkem]) -> 39929 | L33: =SUBTOTAL(109,[Celkový počet obědů (bez školka a jesle)]) -> 56075
A37: Vytvořeno dne: 3.1.2018

Sheet 12-2017
A1: Stavy jídel za období 1.12.2017 - 31.12.2017
A2: Datum | B2: Zaměstnanci FN | C2: Studenti | D2: Stážisté | E2: Důchodci | F2: Exbio | G2: Cizí | H2: Tablet | I2: Jesle | J2: Školka | K2: Jídelna celkem | L2: Celkový počet obědů (bez školka a jesle)
A3: 01.12. pátek | B3: 1138 | C3: 304 | D3: 7 | E3: 116 | F3: 10 | G3: 116 | H3: 649 | I3: 12 | J3: 42 | K3: =SUM(Tabulka_ExterníData_113[[#This Row],[Zaměstnanci FN]:[Cizí]]) -> 1691 | L3: =SUM(H3,K3) -> 2340
A4: 02.12. sobota | B4: 71 | G4: 5 | H4: 241 | K4: =SUM(Tabulka_ExterníData_113[[#This Row],[Zaměstnanci FN]:[Cizí]]) -> 76 | L4: 317
A5: 03.12. neděle | B5: 49 | G5: 7 | H5: 229 | K5: =SUM(Tabulka_ExterníData_113[[#This Row],[Zaměstnanci FN]:[Cizí]]) -> 56 | L5: 285
A6: 04.12. pondělí | B6: 1103 | C6: 422 | D6: 8 | E6: 122 | F6: 13 | G6: 105 | H6: 616 | I6: 12 | J6: 45 | K6: =SUM(Tabulka_ExterníData_113[[#This Row],[Zaměstnanci FN]:[Cizí]]) -> 1773 | L6: 2389
A7: 05.12. úterý | B7: 1162 | C7: 561 | D7: 10 | E7: 127 | F7: 9 | G7: 113 | H7: 661 | I7: 12 | J7: 41 | K7: =SUM(Tabulka_ExterníData_113[[#This Row],[Zaměstnanci FN]:[Cizí]]) -> 1982 | L7: 2643
A8: 06.12. středa | B8: 1219 | C8: 534 | D8: 8 | E8: 115 | F8: 11 | G8: 112 | H8: 694 | I8: 12 | J8: 40 | K8: =SUM(Tabulka_ExterníData_113[[#This Row],[Zaměstnanci FN]:[Cizí]]) -> 1999 | L8: 2693
A9: 07.12. čtvrtek | B9: 1174 | C9: 418 | D9: 9 | E9: 131 | F9: 9 | G9: 116 | H9: 655 | I9: 12 | J9: 40 | K9: =SUM(Tabulka_ExterníData_113[[#This Row],[Zaměstnanci FN]:[Cizí]]) -> 1857 | L9: 2512
A10: 08.12. pátek | B10: 1038 | C10: 267 | D10: 9 | E10: 118 | F10: 9 | G10: 86 | H10: 624 | I10: 12 | J10: 39 | K10: =SUM(Tabulka_ExterníData_113[[#This Row],[Zaměstnanci FN]:[Cizí]]) -> 1527 | L10: 2151
A11: 09.12. sobota | B11: 56 | G11: 5 | H11: 245 | K11: =SUM(Tabulka_ExterníData_113[[#This Row],[Zaměstnanci FN]:[Cizí]]) -> 61 | L11: 306
A12: 10.12. neděle | B12: 55 | G12: 6 | H12: 229 | K12: =SUM(Tabulka_ExterníData_113[[#This Row],[Zaměstnanci FN]:[Cizí]]) -> 61 | L12: 290
A13: 11.12. pondělí | B13: 1082 | C13: 376 | D13: 9 | E13: 112 | F13: 12 | G13: 108 | H13: 598 | I13: 12 | J13: 41 | K13: =SUM(Tabulka_ExterníData_113[[#This Row],[Zaměstnanci FN]:[Cizí]]) -> 1699 | L13: 2297
A14: 12.12. úterý | B14: 1224 | C14: 499 | D14: 10 | E14: 137 | F14: 12 | G14: 117 | H14: 687 | I14: 12 | J14: 40 | K14: =SUM(Tabulka_ExterníData_113[[#This Row],[Zaměstnanci FN]:[Cizí]]) -> 1999 | L14: 2686
A15: 13.12. středa | B15: 1130 | C15: 468 | D15: 8 | E15: 115 | F15: 9 | G15: 121 | H15: 660 | I15: 12 | J15: 42 | K15: =SUM(Tabulka_ExterníData_113[[#This Row],[Zaměstnanci FN]:[Cizí]]) -> 1851 | L15: 2511
A16: 14.12. čtvrtek | B16: 1181 | C16: 399 | D16: 10 | E16: 130 | F16: 9 | G16: 102 | H16: 663 | I16: 12 | J16: 37 | K16: =SUM(Tabulka_ExterníData_113[[#This Row],[Zaměstnanci FN]:[Cizí]]) -> 1831 | L16: 2494
A17: 15.12. pátek | B17: 1057 | C17: 266 | D17: 8 | E17: 121 | F17: 11 | G17: 93 | H17: 624 | I17: 12 | J17: 38 | K17: =SUM(Tabulka_ExterníData_113[[#This Row],[Zaměstnanci FN]:[Cizí]]) -> 1556 | L17: 2180
A18: 16.12. sobota | B18: 67 | G18: 7 | H18: 225 | K18: =SUM(Tabulka_ExterníData_113[[#This Row],[Zaměstnanci FN]:[Cizí]]) -> 74 | L18: 299
A19: 17.12. neděle | B19: 54 | G19: 7 | H19: 227 | K19: =SUM(Tabulka_ExterníData_113[[#This Row],[Zaměstnanci FN]:[Cizí]]) -> 61 | L19: 288
A20: 18.12. pondělí | B20: 1041 | C20: 315 | D20: 6 | E20: 122 | F20: 11 | G20: 109 | H20: 579 | I20: 12 | J20: 41 | K20: =SUM(Tabulka_ExterníData_113[[#This Row],[Zaměstnanci FN]:[Cizí]]) -> 1604 | L20: 2183
A21: 19.12. úterý | B21: 1125 | C21: 392 | D21: 5 | E21: 127 | F21: 10 | G21: 106 | H21: 589 | I21: 12 | J21: 39 | K21: =SUM(Tabulka_ExterníData_113[[#This Row],[Zaměstnanci FN]:[Cizí]]) -> 1765 | L21: 2354
A22: 20.12. středa | B22: 1149 | C22: 336 | D22: 6 | E22: 113 | F22: 12 | G22: 104 | H22: 575 | I22: 12 | J22: 36 | K22: =SUM(Tabulka_ExterníData_113[[#This Row],[Zaměstnanci FN]:[Cizí]]) -> 1720 | L22: 2295
A23: 21.12. čtvrtek | B23: 1155 | C23: 255 | D23: 5 | E23: 122 | F23: 8 | G23: 100 | H23: 588 | I23: 12 | J23: 30 | K23: =SUM(Tabulka_ExterníData_113[[#This Row],[Zaměstnanci FN]:[Cizí]]) -> 1645 | L23: 2233
A24: 22.12. pátek | B24: 784 | C24: 69 | D24: 3 | E24: 101 | F24: 8 | G24: 59 | H24: 447 | I24: 12 | J24: 28 | K24: =SUM(Tabulka_ExterníData_113[[#This Row],[Zaměstnanci FN]:[Cizí]]) -> 1024 | L24: 1471
A25: 23.12. sobota | B25: 62 | G25: 5 | H25: 199 | K25: =SUM(Tabulka_ExterníData_113[[#This Row],[Zaměstnanci FN]:[Cizí]]) -> 67 | L25: 266
A26: 24.12. neděle | B26: 48 | G26: 3 | H26: 167 | K26: =SUM(Tabulka_ExterníData_113[[#This Row],[Zaměstnanci FN]:[Cizí]]) -> 51 | L26: 218
A27: 25.12. pondělí | B27: 50 | E27: 1 | G27: 6 | H27: 172 | K27: =SUM(Tabulka_ExterníData_113[[#This Row],[Zaměstnanci FN]:[Cizí]]) -> 57 | L27: 229
A28: 26.12. úterý | B28: 44 | G28: 4 | H28: 161 | K28: =SUM(Tabulka_ExterníData_113[[#This Row],[Zaměstnanci FN]:[Cizí]]) -> 48 | L28: 209
A29: 27.12. středa | B29: 527 | C29: 13 | E29: 64 | G29: 16 | H29: 342 | K29: =SUM(Tabulka_ExterníData_113[[#This Row],[Zaměstnanci FN]:[Cizí]]) -> 620 | L29: 962
A30: 28.12. čtvrtek | B30: 626 | C30: 23 | D30: 1 | E30: 80 | G30: 15 | H30: 413 | K30: =SUM(Tabulka_ExterníData_113[[#This Row],[Zaměstnanci FN]:[Cizí]]) -> 745 | L30: 1158
A31: 29.12. pátek | B31: 477 | C31: 22 | E31: 64 | G31: 17 | H31: 340 | K31: =SUM(Tabulka_ExterníData_113[[#This Row],[Zaměstnanci FN]:[Cizí]]) -> 580 | L31: 920
A32: 30.12. sobota | B32: 55 | G32: 6 | H32: 184 | K32: =SUM(Tabulka_ExterníData_113[[#This Row],[Zaměstnanci FN]:[Cizí]]) -> 61 | L32: 245
A33: 31.12. neděle | B33: 50 | G33: 6 | H33: 184 | K33: =SUM(Tabulka_ExterníData_113[[#This Row],[Zaměstnanci FN]:[Cizí]]) -> 56 | L33: 240
B34: =SUBTOTAL(109,[Zaměstnanci FN]) -> 20053 | C34: =SUBTOTAL(109,C3:C33) -> 5939 | D34: 122 | E34: 2138 | F34: 163 | G34: 1782 | H34: 13467 | I34: 192 | J34: 619 | K34: =SUBTOTAL(109,[Jídelna celkem]) -> 30197 | L34: =SUBTOTAL(109,[Celkový počet obědů (bez školka a jesle)]) -> 43664
A37: Vytvořeno dne: 3.1.2018
